{"text_format":"1","workbook":"xlsx","n_sheets":2,"sheets":["TEMPLATE Toppers","FACTSHEET Toppers"],"not_rendered":{"charts":0,"images":10,"macros":1,"external_links":0,"defined_names":3,"comments":0,"pivot_tables":0},"unopened":[],"bounds":{"document_bytes":16777216,"sheet_cells":100000,"rows_first":2000,"rows_last":500,"rows_between":2000,"halvings":0,"cell_chars":16384,"cell_head_chars":4096},"cells_cut":0,"cells_raw":0,"read":"whole","date_system":"1900"}

{"sheet":"TEMPLATE Toppers","index":0,"n_rows":355,"n_cols":41,"rows_kept":355,"cut":false,"hidden":false,"merged":[[1,1,1,25]]}
[]
[null,"Toppers Template"]
[null,"Uiting\nprint/online, online","Bijzonderheden \nnieuw, kijk online, op=op","Titel \nmax 50 karakters -\n merk + artikelnaam","Tekst / USP's \nmax 300 karakters - voordelen en toepassingen\n(zie Factsheet voor aanleverspecificaties)","Type\nBij meerdere artikelen in één actie. Vul het onderscheid tussen de artikelen in, niet zijnde de factuuromschrijving","Art. nr. TU",null,null,"Selecteer gewenste formaat:\n1/4 pagina\n1/2 pagina\n1/1 pagina (in overleg met TU)\n",null,null,null,null,null,null,null,null,null,null,null,null,null,null,null,"Actie \ninkoopprijs"]
[null,null,null,null,null,null,null,null,null,null,null,null,null,null,{"$f":"IF(OR(L4>0,#REF!>0)=TRUE,IF(AND(Q4=\"JA\",#REF!>0)=TRUE,(L4*(1-M4+N4))-S4,IF(#REF!>0,#REF!*(1-#REF!+K4),L4*(1-M4+N4))),\"\")","v":{"$error":"#REF!"}},{"$f":"IF(I4>0,(I4-O4)/I4,\"\")","v":""},null,{"$f":"IF(AND(Q4=\"JA\",#REF!>0)=TRUE,IF(#REF!=\"JA\",0,L4-#REF!),\"\" )","v":{"$error":"#REF!"}},{"$f":"IF(AND(Q4=\"JA\",#REF!>0)=TRUE,IF(#REF!=\"JA\",(L4-#REF!)+(L4*(N4-K4)),R4+(L4*(N4-K4))),\"\" )","v":{"$error":"#REF!"}},null,{"$f":"IF(F4>0,LEN(F4),\" \")","v":" "},{"$f":"IF(G4>0,LEN(G4),\" \")","v":" "},null,{"$f":"IF(H4>0,LEN(H4),\" \")","v":" "},{"$f":"IF(I4>0,LEN(I4),\" \")","v":" "}]
[null,"print","nieuw","Merk product","Zie factscheet aanleverspecificaties.","TU-123A",4907317,null,null,"1/4 pagina",null,null,null,null,{"$f":"IF(OR(L5>0,#REF!>0)=TRUE,IF(AND(Q5=\"JA\",#REF!>0)=TRUE,(L5*(1-M5+N5))-S5,IF(#REF!>0,#REF!*(1-#REF!+K5),L5*(1-M5+N5))),\"\")","v":{"$error":"#REF!"}}]
[null,null,null,null,null,null,null,{"$f":"R6","v":{"$error":"#REF!"}},null,null,null,null,null,null,null,null,null,{"$f":"VLOOKUP(G6,#REF!,3,FALSE)","v":{"$error":"#REF!"}},{"$f":"VLOOKUP(G6,#REF!,6,FALSE)","v":{"$error":"#REF!"}},{"$f":"VLOOKUP(G6,#REF!,4,FALSE)","v":{"$error":"#REF!"}}]
[null,null,null,null,null,null,null,{"$error":"#REF!"},null,null,null,null,null,null,null,null,null,{"$f":"VLOOKUP(G7,#REF!,3,FALSE)","v":{"$error":"#REF!"}},{"$f":"VLOOKUP(G7,#REF!,6,FALSE)","v":{"$error":"#REF!"}},{"$f":"VLOOKUP(G7,#REF!,4,FALSE)","v":{"$error":"#REF!"}}]
[null,null,null,null,null,null,null,{"$error":"#REF!"},null,null,null,null,null,null,null,null,null,{"$f":"VLOOKUP(G8,#REF!,3,FALSE)","v":{"$error":"#REF!"}},{"$f":"VLOOKUP(G8,#REF!,6,FALSE)","v":{"$error":"#REF!"}},{"$f":"VLOOKUP(G8,#REF!,4,FALSE)","v":{"$error":"#REF!"}}]
[null,null,null,null,null,null,null,{"$error":"#REF!"},null,null,null,null,null,null,null,null,null,{"$f":"VLOOKUP(G9,#REF!,3,FALSE)","v":{"$error":"#REF!"}},{"$f":"VLOOKUP(G9,#REF!,6,FALSE)","v":{"$error":"#REF!"}},{"$f":"VLOOKUP(G9,#REF!,4,FALSE)","v":{"$error":"#REF!"}}]
[null,null,null,null,null,null,null,{"$error":"#REF!"},null,null,null,null,null,null,null,null,null,{"$f":"VLOOKUP(G10,#REF!,3,FALSE)","v":{"$error":"#REF!"}},{"$f":"VLOOKUP(G10,#REF!,6,FALSE)","v":{"$error":"#REF!"}},{"$f":"VLOOKUP(G10,#REF!,4,FALSE)","v":{"$error":"#REF!"}}]
[null,null,null,null,null,null,null,{"$error":"#REF!"},null,null,null,null,null,null,null,null,null,{"$f":"VLOOKUP(G11,#REF!,3,FALSE)","v":{"$error":"#REF!"}},{"$f":"VLOOKUP(G11,#REF!,6,FALSE)","v":{"$error":"#REF!"}},{"$f":"VLOOKUP(G11,#REF!,4,FALSE)","v":{"$error":"#REF!"}}]
[null,null,null,null,null,null,null,{"$error":"#REF!"},null,null,null,null,null,null,null,null,null,{"$f":"VLOOKUP(G12,#REF!,3,FALSE)","v":{"$error":"#REF!"}},{"$f":"VLOOKUP(G12,#REF!,6,FALSE)","v":{"$error":"#REF!"}},{"$f":"VLOOKUP(G12,#REF!,4,FALSE)","v":{"$error":"#REF!"}}]
[null,null,null,null,null,null,null,{"$error":"#REF!"},null,null,null,null,null,null,null,null,null,{"$f":"VLOOKUP(G13,#REF!,3,FALSE)","v":{"$error":"#REF!"}},{"$f":"VLOOKUP(G13,#REF!,6,FALSE)","v":{"$error":"#REF!"}},{"$f":"VLOOKUP(G13,#REF!,4,FALSE)","v":{"$error":"#REF!"}}]
[null,null,null,null,null,null,null,{"$error":"#REF!"},null,null,null,null,null,null,null,null,null,{"$f":"VLOOKUP(G14,#REF!,3,FALSE)","v":{"$error":"#REF!"}},{"$f":"VLOOKUP(G14,#REF!,6,FALSE)","v":{"$error":"#REF!"}},{"$f":"VLOOKUP(G14,#REF!,4,FALSE)","v":{"$error":"#REF!"}}]
[null,null,null,null,null,null,null,{"$f":"R15","v":{"$error":"#REF!"}},null,null,null,null,null,null,null,null,null,{"$f":"VLOOKUP(G15,#REF!,3,FALSE)","v":{"$error":"#REF!"}},{"$f":"VLOOKUP(G15,#REF!,6,FALSE)","v":{"$error":"#REF!"}},{"$f":"VLOOKUP(G15,#REF!,4,FALSE)","v":{"$error":"#REF!"}}]
[null,null,null,null,null,null,null,{"$error":"#REF!"},null,null,null,null,null,null,null,null,null,{"$f":"VLOOKUP(G16,#REF!,3,FALSE)","v":{"$error":"#REF!"}},{"$f":"VLOOKUP(G16,#REF!,6,FALSE)","v":{"$error":"#REF!"}},{"$f":"VLOOKUP(G16,#REF!,4,FALSE)","v":{"$error":"#REF!"}}]
[null,null,null,null,null,null,null,{"$error":"#REF!"},null,null,null,null,null,null,null,null,null,{"$f":"VLOOKUP(G17,#REF!,3,FALSE)","v":{"$error":"#REF!"}},{"$f":"VLOOKUP(G17,#REF!,6,FALSE)","v":{"$error":"#REF!"}},{"$f":"VLOOKUP(G17,#REF!,4,FALSE)","v":{"$error":"#REF!"}}]
[null,null,null,null,null,null,null,{"$error":"#REF!"},null,null,null,null,null,null,null,null,null,{"$f":"VLOOKUP(G18,#REF!,3,FALSE)","v":{"$error":"#REF!"}},{"$f":"VLOOKUP(G18,#REF!,6,FALSE)","v":{"$error":"#REF!"}},{"$f":"VLOOKUP(G18,#REF!,4,FALSE)","v":{"$error":"#REF!"}}]
[null,null,null,null,null,null,null,{"$error":"#REF!"},null,null,null,null,null,null,null,null,null,{"$f":"VLOOKUP(G19,#REF!,3,FALSE)","v":{"$error":"#REF!"}},{"$f":"VLOOKUP(G19,#REF!,6,FALSE)","v":{"$error":"#REF!"}},{"$f":"VLOOKUP(G19,#REF!,4,FALSE)","v":{"$error":"#REF!"}}]
[null,null,null,null,null,null,null,{"$error":"#REF!"},null,null,null,null,null,null,null,null,null,{"$f":"VLOOKUP(G20,#REF!,3,FALSE)","v":{"$error":"#REF!"}},{"$f":"VLOOKUP(G20,#REF!,6,FALSE)","v":{"$error":"#REF!"}},{"$f":"VLOOKUP(G20,#REF!,4,FALSE)","v":{"$error":"#REF!"}}]
[null,null,null,null,null,null,null,{"$error":"#REF!"},null,null,null,null,null,null,null,null,null,{"$f":"VLOOKUP(G21,#REF!,3,FALSE)","v":{"$error":"#REF!"}},{"$f":"VLOOKUP(G21,#REF!,6,FALSE)","v":{"$error":"#REF!"}},{"$f":"VLOOKUP(G21,#REF!,4,FALSE)","v":{"$error":"#REF!"}}]
[null,null,null,null,null,null,null,{"$error":"#REF!"},null,null,null,null,null,null,null,null,null,{"$f":"VLOOKUP(G22,#REF!,3,FALSE)","v":{"$error":"#REF!"}},{"$f":"VLOOKUP(G22,#REF!,6,FALSE)","v":{"$error":"#REF!"}},{"$f":"VLOOKUP(G22,#REF!,4,FALSE)","v":{"$error":"#REF!"}}]
[null,null,null,null,null,null,null,{"$error":"#REF!"},null,null,null,null,null,null,null,null,null,{"$f":"VLOOKUP(G23,#REF!,3,FALSE)","v":{"$error":"#REF!"}},{"$f":"VLOOKUP(G23,#REF!,6,FALSE)","v":{"$error":"#REF!"}},{"$f":"VLOOKUP(G23,#REF!,4,FALSE)","v":{"$error":"#REF!"}}]
[null,null,null,null,null,null,null,{"$error":"#REF!"},null,null,null,null,null,null,null,null,null,{"$f":"VLOOKUP(G24,#REF!,3,FALSE)","v":{"$error":"#REF!"}},{"$f":"VLOOKUP(G24,#REF!,6,FALSE)","v":{"$error":"#REF!"}},{"$f":"VLOOKUP(G24,#REF!,4,FALSE)","v":{"$error":"#REF!"}}]
[null,null,null,null,null,null,null,{"$error":"#REF!"},null,null,null,null,null,null,null,null,null,{"$f":"VLOOKUP(G25,#REF!,3,FALSE)","v":{"$error":"#REF!"}},{"$f":"VLOOKUP(G25,#REF!,6,FALSE)","v":{"$error":"#REF!"}},{"$f":"VLOOKUP(G25,#REF!,4,FALSE)","v":{"$error":"#REF!"}}]
[null,null,null,null,null,null,null,{"$error":"#REF!"},null,null,null,null,null,null,null,null,null,{"$f":"VLOOKUP(G26,#REF!,3,FALSE)","v":{"$error":"#REF!"}},{"$f":"VLOOKUP(G26,#REF!,6,FALSE)","v":{"$error":"#REF!"}},{"$f":"VLOOKUP(G26,#REF!,4,FALSE)","v":{"$error":"#REF!"}}]
[null,null,null,null,null,null,null,{"$error":"#REF!"},null,null,null,null,null,null,null,null,null,{"$f":"VLOOKUP(G27,#REF!,3,FALSE)","v":{"$error":"#REF!"}},{"$f":"VLOOKUP(G27,#REF!,6,FALSE)","v":{"$error":"#REF!"}},{"$f":"VLOOKUP(G27,#REF!,4,FALSE)","v":{"$error":"#REF!"}}]
[null,null,null,null,null,null,null,{"$error":"#REF!"},null,null,null,null,null,null,null,null,null,{"$f":"VLOOKUP(G28,#REF!,3,FALSE)","v":{"$error":"#REF!"}},{"$f":"VLOOKUP(G28,#REF!,6,FALSE)","v":{"$error":"#REF!"}},{"$f":"VLOOKUP(G28,#REF!,4,FALSE)","v":{"$error":"#REF!"}}]
[null,null,null,null,null,null,null,{"$error":"#REF!"},null,null,null,null,null,null,null,null,null,{"$f":"VLOOKUP(G29,#REF!,3,FALSE)","v":{"$error":"#REF!"}},{"$f":"VLOOKUP(G29,#REF!,6,FALSE)","v":{"$error":"#REF!"}},{"$f":"VLOOKUP(G29,#REF!,4,FALSE)","v":{"$error":"#REF!"}}]
[null,null,null,null,null,null,null,{"$error":"#REF!"},null,null,null,null,null,null,null,null,null,{"$f":"VLOOKUP(G30,#REF!,3,FALSE)","v":{"$error":"#REF!"}},{"$f":"VLOOKUP(G30,#REF!,6,FALSE)","v":{"$error":"#REF!"}},{"$f":"VLOOKUP(G30,#REF!,4,FALSE)","v":{"$error":"#REF!"}}]
[null,null,null,null,null,null,null,{"$error":"#REF!"},null,null,null,null,null,null,null,null,null,{"$f":"VLOOKUP(G31,#REF!,3,FALSE)","v":{"$error":"#REF!"}},{"$f":"VLOOKUP(G31,#REF!,6,FALSE)","v":{"$error":"#REF!"}},{"$f":"VLOOKUP(G31,#REF!,4,FALSE)","v":{"$error":"#REF!"}}]
[null,null,null,null,null,null,null,{"$error":"#REF!"},null,null,null,null,null,null,null,null,null,{"$f":"VLOOKUP(G32,#REF!,3,FALSE)","v":{"$error":"#REF!"}},{"$f":"VLOOKUP(G32,#REF!,6,FALSE)","v":{"$error":"#REF!"}},{"$f":"VLOOKUP(G32,#REF!,4,FALSE)","v":{"$error":"#REF!"}}]
[null,null,null,null,null,null,null,{"$error":"#REF!"},null,null,null,null,null,null,null,null,null,{"$f":"VLOOKUP(G33,#REF!,3,FALSE)","v":{"$error":"#REF!"}},{"$f":"VLOOKUP(G33,#REF!,6,FALSE)","v":{"$error":"#REF!"}},{"$f":"VLOOKUP(G33,#REF!,4,FALSE)","v":{"$error":"#REF!"}}]
[null,null,null,null,null,null,null,{"$error":"#REF!"},null,null,null,null,null,null,null,null,null,{"$f":"VLOOKUP(G34,#REF!,3,FALSE)","v":{"$error":"#REF!"}},{"$f":"VLOOKUP(G34,#REF!,6,FALSE)","v":{"$error":"#REF!"}},{"$f":"VLOOKUP(G34,#REF!,4,FALSE)","v":{"$error":"#REF!"}}]
[null,null,null,null,null,null,null,{"$error":"#REF!"},null,null,null,null,null,null,null,null,null,{"$f":"VLOOKUP(G35,#REF!,3,FALSE)","v":{"$error":"#REF!"}},{"$f":"VLOOKUP(G35,#REF!,6,FALSE)","v":{"$error":"#REF!"}},{"$f":"VLOOKUP(G35,#REF!,4,FALSE)","v":{"$error":"#REF!"}}]
[null,null,null,null,null,null,null,{"$error":"#REF!"},null,null,null,null,null,null,null,null,null,{"$f":"VLOOKUP(G36,#REF!,3,FALSE)","v":{"$error":"#REF!"}},{"$f":"VLOOKUP(G36,#REF!,6,FALSE)","v":{"$error":"#REF!"}},{"$f":"VLOOKUP(G36,#REF!,4,FALSE)","v":{"$error":"#REF!"}}]
[null,null,null,null,null,null,null,{"$error":"#REF!"},null,null,null,null,null,null,null,null,null,{"$f":"VLOOKUP(G37,#REF!,3,FALSE)","v":{"$error":"#REF!"}},{"$f":"VLOOKUP(G37,#REF!,6,FALSE)","v":{"$error":"#REF!"}},{"$f":"VLOOKUP(G37,#REF!,4,FALSE)","v":{"$error":"#REF!"}}]
[null,null,null,null,null,null,null,{"$error":"#REF!"},null,null,null,null,null,null,null,null,null,{"$f":"VLOOKUP(G38,#REF!,3,FALSE)","v":{"$error":"#REF!"}},{"$f":"VLOOKUP(G38,#REF!,6,FALSE)","v":{"$error":"#REF!"}},{"$f":"VLOOKUP(G38,#REF!,4,FALSE)","v":{"$error":"#REF!"}}]
[null,null,null,null,null,null,null,{"$error":"#REF!"},null,null,null,null,null,null,null,null,null,{"$f":"VLOOKUP(G39,#REF!,3,FALSE)","v":{"$error":"#REF!"}},{"$f":"VLOOKUP(G39,#REF!,6,FALSE)","v":{"$error":"#REF!"}},{"$f":"VLOOKUP(G39,#REF!,4,FALSE)","v":{"$error":"#REF!"}}]
[null,null,null,null,null,null,null,{"$error":"#REF!"},null,null,null,null,null,null,null,null,null,{"$f":"VLOOKUP(G40,#REF!,3,FALSE)","v":{"$error":"#REF!"}},{"$f":"VLOOKUP(G40,#REF!,6,FALSE)","v":{"$error":"#REF!"}},{"$f":"VLOOKUP(G40,#REF!,4,FALSE)","v":{"$error":"#REF!"}}]
[null,null,null,null,null,null,null,{"$error":"#REF!"},null,null,null,null,null,null,null,null,null,{"$f":"VLOOKUP(G41,#REF!,3,FALSE)","v":{"$error":"#REF!"}},{"$f":"VLOOKUP(G41,#REF!,6,FALSE)","v":{"$error":"#REF!"}},{"$f":"VLOOKUP(G41,#REF!,4,FALSE)","v":{"$error":"#REF!"}}]
[null,null,null,null,null,null,null,{"$error":"#REF!"},null,null,null,null,null,null,null,null,null,{"$f":"VLOOKUP(G42,#REF!,3,FALSE)","v":{"$error":"#REF!"}},{"$f":"VLOOKUP(G42,#REF!,6,FALSE)","v":{"$error":"#REF!"}},{"$f":"VLOOKUP(G42,#REF!,4,FALSE)","v":{"$error":"#REF!"}}]
[null,null,null,null,null,null,null,{"$error":"#REF!"},null,null,null,null,null,null,null,null,null,{"$f":"VLOOKUP(G43,#REF!,3,FALSE)","v":{"$error":"#REF!"}},{"$f":"VLOOKUP(G43,#REF!,6,FALSE)","v":{"$error":"#REF!"}},{"$f":"VLOOKUP(G43,#REF!,4,FALSE)","v":{"$error":"#REF!"}}]
[null,null,null,null,null,null,null,{"$error":"#REF!"},null,null,null,null,null,null,null,null,null,{"$f":"VLOOKUP(G44,#REF!,3,FALSE)","v":{"$error":"#REF!"}},{"$f":"VLOOKUP(G44,#REF!,6,FALSE)","v":{"$error":"#REF!"}},{"$f":"VLOOKUP(G44,#REF!,4,FALSE)","v":{"$error":"#REF!"}}]
[null,null,null,null,null,null,null,{"$error":"#REF!"},null,null,null,null,null,null,null,null,null,{"$f":"VLOOKUP(G45,#REF!,3,FALSE)","v":{"$error":"#REF!"}},{"$f":"VLOOKUP(G45,#REF!,6,FALSE)","v":{"$error":"#REF!"}},{"$f":"VLOOKUP(G45,#REF!,4,FALSE)","v":{"$error":"#REF!"}}]
[null,null,null,null,null,null,null,{"$error":"#REF!"},null,null,null,null,null,null,null,null,null,{"$f":"VLOOKUP(G46,#REF!,3,FALSE)","v":{"$error":"#REF!"}},{"$f":"VLOOKUP(G46,#REF!,6,FALSE)","v":{"$error":"#REF!"}},{"$f":"VLOOKUP(G46,#REF!,4,FALSE)","v":{"$error":"#REF!"}}]
[null,null,null,null,null,null,null,{"$error":"#REF!"},null,null,null,null,null,null,null,null,null,{"$f":"VLOOKUP(G47,#REF!,3,FALSE)","v":{"$error":"#REF!"}},{"$f":"VLOOKUP(G47,#REF!,6,FALSE)","v":{"$error":"#REF!"}},{"$f":"VLOOKUP(G47,#REF!,4,FALSE)","v":{"$error":"#REF!"}}]
[null,null,null,null,null,null,null,{"$error":"#REF!"},null,null,null,null,null,null,null,null,null,{"$f":"VLOOKUP(G48,#REF!,3,FALSE)","v":{"$error":"#REF!"}},{"$f":"VLOOKUP(G48,#REF!,6,FALSE)","v":{"$error":"#REF!"}},{"$f":"VLOOKUP(G48,#REF!,4,FALSE)","v":{"$error":"#REF!"}}]
[null,null,null,null,null,null,null,{"$error":"#REF!"},null,null,null,null,null,null,null,null,null,{"$f":"VLOOKUP(G49,#REF!,3,FALSE)","v":{"$error":"#REF!"}},{"$f":"VLOOKUP(G49,#REF!,6,FALSE)","v":{"$error":"#REF!"}},{"$f":"VLOOKUP(G49,#REF!,4,FALSE)","v":{"$error":"#REF!"}}]
[null,null,null,null,null,null,null,{"$error":"#REF!"},null,null,null,null,null,null,null,null,null,{"$f":"VLOOKUP(G50,#REF!,3,FALSE)","v":{"$error":"#REF!"}},{"$f":"VLOOKUP(G50,#REF!,6,FALSE)","v":{"$error":"#REF!"}},{"$f":"VLOOKUP(G50,#REF!,4,FALSE)","v":{"$error":"#REF!"}}]
[null,null,null,null,null,null,null,{"$error":"#REF!"},null,null,null,null,null,null,null,null,null,{"$f":"VLOOKUP(G51,#REF!,3,FALSE)","v":{"$error":"#REF!"}},{"$f":"VLOOKUP(G51,#REF!,6,FALSE)","v":{"$error":"#REF!"}},{"$f":"VLOOKUP(G51,#REF!,4,FALSE)","v":{"$error":"#REF!"}}]
[null,null,null,null,null,null,null,{"$error":"#REF!"},null,null,null,null,null,null,null,null,null,{"$f":"VLOOKUP(G52,#REF!,3,FALSE)","v":{"$error":"#REF!"}},{"$f":"VLOOKUP(G52,#REF!,6,FALSE)","v":{"$error":"#REF!"}},{"$f":"VLOOKUP(G52,#REF!,4,FALSE)","v":{"$error":"#REF!"}}]
[null,null,null,null,null,null,null,{"$error":"#REF!"},null,null,null,null,null,null,null,null,null,{"$f":"VLOOKUP(G53,#REF!,3,FALSE)","v":{"$error":"#REF!"}},{"$f":"VLOOKUP(G53,#REF!,6,FALSE)","v":{"$error":"#REF!"}},{"$f":"VLOOKUP(G53,#REF!,4,FALSE)","v":{"$error":"#REF!"}}]
[null,null,null,null,null,null,null,{"$error":"#REF!"},null,null,null,null,null,null,null,null,null,{"$f":"VLOOKUP(G54,#REF!,3,FALSE)","v":{"$error":"#REF!"}},{"$f":"VLOOKUP(G54,#REF!,6,FALSE)","v":{"$error":"#REF!"}},{"$f":"VLOOKUP(G54,#REF!,4,FALSE)","v":{"$error":"#REF!"}}]
[null,null,null,null,null,null,null,{"$error":"#REF!"},null,null,null,null,null,null,null,null,null,{"$f":"VLOOKUP(G55,#REF!,3,FALSE)","v":{"$error":"#REF!"}},{"$f":"VLOOKUP(G55,#REF!,6,FALSE)","v":{"$error":"#REF!"}},{"$f":"VLOOKUP(G55,#REF!,4,FALSE)","v":{"$error":"#REF!"}}]
[null,null,null,null,null,null,null,{"$error":"#REF!"},null,null,null,null,null,null,null,null,null,{"$f":"VLOOKUP(G56,#REF!,3,FALSE)","v":{"$error":"#REF!"}},{"$f":"VLOOKUP(G56,#REF!,6,FALSE)","v":{"$error":"#REF!"}},{"$f":"VLOOKUP(G56,#REF!,4,FALSE)","v":{"$error":"#REF!"}}]
[null,null,null,null,null,null,null,{"$error":"#REF!"},null,null,null,null,null,null,null,null,null,{"$f":"VLOOKUP(G57,#REF!,3,FALSE)","v":{"$error":"#REF!"}},{"$f":"VLOOKUP(G57,#REF!,6,FALSE)","v":{"$error":"#REF!"}},{"$f":"VLOOKUP(G57,#REF!,4,FALSE)","v":{"$error":"#REF!"}}]
[null,null,null,null,null,null,null,{"$error":"#REF!"},null,null,null,null,null,null,null,null,null,{"$f":"VLOOKUP(G58,#REF!,3,FALSE)","v":{"$error":"#REF!"}},{"$f":"VLOOKUP(G58,#REF!,6,FALSE)","v":{"$error":"#REF!"}},{"$f":"VLOOKUP(G58,#REF!,4,FALSE)","v":{"$error":"#REF!"}}]
[null,null,null,null,null,null,null,{"$error":"#REF!"},null,null,null,null,null,null,null,null,null,{"$f":"VLOOKUP(G59,#REF!,3,FALSE)","v":{"$error":"#REF!"}},{"$f":"VLOOKUP(G59,#REF!,6,FALSE)","v":{"$error":"#REF!"}},{"$f":"VLOOKUP(G59,#REF!,4,FALSE)","v":{"$error":"#REF!"}}]
[null,null,null,null,null,null,null,{"$error":"#REF!"},null,null,null,null,null,null,null,null,null,{"$f":"VLOOKUP(G60,#REF!,3,FALSE)","v":{"$error":"#REF!"}},{"$f":"VLOOKUP(G60,#REF!,6,FALSE)","v":{"$error":"#REF!"}},{"$f":"VLOOKUP(G60,#REF!,4,FALSE)","v":{"$error":"#REF!"}}]
[null,null,null,null,null,null,null,{"$error":"#REF!"},null,null,null,null,null,null,null,null,null,{"$f":"VLOOKUP(G61,#REF!,3,FALSE)","v":{"$error":"#REF!"}},{"$f":"VLOOKUP(G61,#REF!,6,FALSE)","v":{"$error":"#REF!"}},{"$f":"VLOOKUP(G61,#REF!,4,FALSE)","v":{"$error":"#REF!"}}]
[null,null,null,null,null,null,null,{"$error":"#REF!"},null,null,null,null,null,null,null,null,null,{"$f":"VLOOKUP(G62,#REF!,3,FALSE)","v":{"$error":"#REF!"}},{"$f":"VLOOKUP(G62,#REF!,6,FALSE)","v":{"$error":"#REF!"}},{"$f":"VLOOKUP(G62,#REF!,4,FALSE)","v":{"$error":"#REF!"}}]
[null,null,null,null,null,null,null,{"$error":"#REF!"},null,null,null,null,null,null,null,null,null,{"$f":"VLOOKUP(G63,#REF!,3,FALSE)","v":{"$error":"#REF!"}},{"$f":"VLOOKUP(G63,#REF!,6,FALSE)","v":{"$error":"#REF!"}},{"$f":"VLOOKUP(G63,#REF!,4,FALSE)","v":{"$error":"#REF!"}}]
[null,null,null,null,null,null,null,{"$error":"#REF!"},null,null,null,null,null,null,null,null,null,{"$f":"VLOOKUP(G64,#REF!,3,FALSE)","v":{"$error":"#REF!"}},{"$f":"VLOOKUP(G64,#REF!,6,FALSE)","v":{"$error":"#REF!"}},{"$f":"VLOOKUP(G64,#REF!,4,FALSE)","v":{"$error":"#REF!"}}]
[null,null,null,null,null,null,null,{"$error":"#REF!"},null,null,null,null,null,null,null,null,null,{"$f":"VLOOKUP(G65,#REF!,3,FALSE)","v":{"$error":"#REF!"}},{"$f":"VLOOKUP(G65,#REF!,6,FALSE)","v":{"$error":"#REF!"}},{"$f":"VLOOKUP(G65,#REF!,4,FALSE)","v":{"$error":"#REF!"}}]
[null,null,null,null,null,null,null,{"$error":"#REF!"},null,null,null,null,null,null,null,null,null,{"$f":"VLOOKUP(G66,#REF!,3,FALSE)","v":{"$error":"#REF!"}},{"$f":"VLOOKUP(G66,#REF!,6,FALSE)","v":{"$error":"#REF!"}},{"$f":"VLOOKUP(G66,#REF!,4,FALSE)","v":{"$error":"#REF!"}}]
[null,null,null,null,null,null,null,{"$error":"#REF!"},null,null,null,null,null,null,null,null,null,{"$f":"VLOOKUP(G67,#REF!,3,FALSE)","v":{"$error":"#REF!"}},{"$f":"VLOOKUP(G67,#REF!,6,FALSE)","v":{"$error":"#REF!"}},{"$f":"VLOOKUP(G67,#REF!,4,FALSE)","v":{"$error":"#REF!"}}]
[null,null,null,null,null,null,null,{"$error":"#REF!"},null,null,null,null,null,null,null,null,null,{"$f":"VLOOKUP(G68,#REF!,3,FALSE)","v":{"$error":"#REF!"}},{"$f":"VLOOKUP(G68,#REF!,6,FALSE)","v":{"$error":"#REF!"}},{"$f":"VLOOKUP(G68,#REF!,4,FALSE)","v":{"$error":"#REF!"}}]
[null,null,null,null,null,null,null,{"$error":"#REF!"},null,null,null,null,null,null,null,null,null,{"$f":"VLOOKUP(G69,#REF!,3,FALSE)","v":{"$error":"#REF!"}},{"$f":"VLOOKUP(G69,#REF!,6,FALSE)","v":{"$error":"#REF!"}},{"$f":"VLOOKUP(G69,#REF!,4,FALSE)","v":{"$error":"#REF!"}}]
[null,null,null,null,null,null,null,{"$error":"#REF!"},null,null,null,null,null,null,null,null,null,{"$f":"VLOOKUP(G70,#REF!,3,FALSE)","v":{"$error":"#REF!"}},{"$f":"VLOOKUP(G70,#REF!,6,FALSE)","v":{"$error":"#REF!"}},{"$f":"VLOOKUP(G70,#REF!,4,FALSE)","v":{"$error":"#REF!"}}]
[null,null,null,null,null,null,null,{"$error":"#REF!"},null,null,null,null,null,null,null,null,null,{"$f":"VLOOKUP(G71,#REF!,3,FALSE)","v":{"$error":"#REF!"}},{"$f":"VLOOKUP(G71,#REF!,6,FALSE)","v":{"$error":"#REF!"}},{"$f":"VLOOKUP(G71,#REF!,4,FALSE)","v":{"$error":"#REF!"}}]
[null,null,null,null,null,null,null,{"$error":"#REF!"},null,null,null,null,null,null,null,null,null,{"$f":"VLOOKUP(G72,#REF!,3,FALSE)","v":{"$error":"#REF!"}},{"$f":"VLOOKUP(G72,#REF!,6,FALSE)","v":{"$error":"#REF!"}},{"$f":"VLOOKUP(G72,#REF!,4,FALSE)","v":{"$error":"#REF!"}}]
[null,null,null,null,null,null,null,{"$error":"#REF!"},null,null,null,null,null,null,null,null,null,{"$f":"VLOOKUP(G73,#REF!,3,FALSE)","v":{"$error":"#REF!"}},{"$f":"VLOOKUP(G73,#REF!,6,FALSE)","v":{"$error":"#REF!"}},{"$f":"VLOOKUP(G73,#REF!,4,FALSE)","v":{"$error":"#REF!"}}]
[null,null,null,null,null,null,null,{"$error":"#REF!"},null,null,null,null,null,null,null,null,null,{"$f":"VLOOKUP(G74,#REF!,3,FALSE)","v":{"$error":"#REF!"}},{"$f":"VLOOKUP(G74,#REF!,6,FALSE)","v":{"$error":"#REF!"}},{"$f":"VLOOKUP(G74,#REF!,4,FALSE)","v":{"$error":"#REF!"}}]
[null,null,null,null,null,null,null,{"$error":"#REF!"},null,null,null,null,null,null,null,null,null,{"$f":"VLOOKUP(G75,#REF!,3,FALSE)","v":{"$error":"#REF!"}},{"$f":"VLOOKUP(G75,#REF!,6,FALSE)","v":{"$error":"#REF!"}},{"$f":"VLOOKUP(G75,#REF!,4,FALSE)","v":{"$error":"#REF!"}}]
[null,null,null,null,null,null,null,{"$error":"#REF!"},null,null,null,null,null,null,null,null,null,{"$f":"VLOOKUP(G76,#REF!,3,FALSE)","v":{"$error":"#REF!"}},{"$f":"VLOOKUP(G76,#REF!,6,FALSE)","v":{"$error":"#REF!"}},{"$f":"VLOOKUP(G76,#REF!,4,FALSE)","v":{"$error":"#REF!"}}]
[null,null,null,null,null,null,null,{"$error":"#REF!"},null,null,null,null,null,null,null,null,null,{"$f":"VLOOKUP(G77,#REF!,3,FALSE)","v":{"$error":"#REF!"}},{"$f":"VLOOKUP(G77,#REF!,6,FALSE)","v":{"$error":"#REF!"}},{"$f":"VLOOKUP(G77,#REF!,4,FALSE)","v":{"$error":"#REF!"}}]
[null,null,null,null,null,null,null,{"$error":"#REF!"},null,null,null,null,null,null,null,null,null,{"$f":"VLOOKUP(G78,#REF!,3,FALSE)","v":{"$error":"#REF!"}},{"$f":"VLOOKUP(G78,#REF!,6,FALSE)","v":{"$error":"#REF!"}},{"$f":"VLOOKUP(G78,#REF!,4,FALSE)","v":{"$error":"#REF!"}}]
[null,null,null,null,null,null,null,{"$error":"#REF!"},null,null,null,null,null,null,null,null,null,{"$f":"VLOOKUP(G79,#REF!,3,FALSE)","v":{"$error":"#REF!"}},{"$f":"VLOOKUP(G79,#REF!,6,FALSE)","v":{"$error":"#REF!"}},{"$f":"VLOOKUP(G79,#REF!,4,FALSE)","v":{"$error":"#REF!"}}]
[null,null,null,null,null,null,null,{"$f":"R80","v":{"$error":"#REF!"}},null,null,null,null,null,null,null,null,null,{"$f":"VLOOKUP(G80,#REF!,3,FALSE)","v":{"$error":"#REF!"}},{"$f":"VLOOKUP(G80,#REF!,6,FALSE)","v":{"$error":"#REF!"}},{"$f":"VLOOKUP(G80,#REF!,4,FALSE)","v":{"$error":"#REF!"}}]
[null,null,null,null,null,null,null,{"$f":"R81","v":{"$error":"#REF!"}},null,null,null,null,null,null,null,null,null,{"$f":"VLOOKUP(G81,#REF!,3,FALSE)","v":{"$error":"#REF!"}},{"$f":"VLOOKUP(G81,#REF!,6,FALSE)","v":{"$error":"#REF!"}},{"$f":"VLOOKUP(G81,#REF!,4,FALSE)","v":{"$error":"#REF!"}}]
[null,null,null,null,null,null,null,{"$f":"R82","v":{"$error":"#REF!"}},null,null,null,null,null,null,null,null,null,{"$f":"VLOOKUP(G82,#REF!,3,FALSE)","v":{"$error":"#REF!"}},{"$f":"VLOOKUP(G82,#REF!,6,FALSE)","v":{"$error":"#REF!"}},{"$f":"VLOOKUP(G82,#REF!,4,FALSE)","v":{"$error":"#REF!"}}]
[null,null,null,null,null,null,null,{"$f":"R83","v":{"$error":"#REF!"}},null,null,null,null,null,null,null,null,null,{"$f":"VLOOKUP(G83,#REF!,3,FALSE)","v":{"$error":"#REF!"}},{"$f":"VLOOKUP(G83,#REF!,6,FALSE)","v":{"$error":"#REF!"}},{"$f":"VLOOKUP(G83,#REF!,4,FALSE)","v":{"$error":"#REF!"}}]
[null,null,null,null,null,null,null,{"$f":"R84","v":{"$error":"#REF!"}},null,null,null,null,null,null,null,null,null,{"$f":"VLOOKUP(G84,#REF!,3,FALSE)","v":{"$error":"#REF!"}},{"$f":"VLOOKUP(G84,#REF!,6,FALSE)","v":{"$error":"#REF!"}},{"$f":"VLOOKUP(G84,#REF!,4,FALSE)","v":{"$error":"#REF!"}}]
[null,null,null,null,null,null,null,{"$f":"R85","v":{"$error":"#REF!"}},null,null,null,null,null,null,null,null,null,{"$f":"VLOOKUP(G85,#REF!,3,FALSE)","v":{"$error":"#REF!"}},{"$f":"VLOOKUP(G85,#REF!,6,FALSE)","v":{"$error":"#REF!"}},{"$f":"VLOOKUP(G85,#REF!,4,FALSE)","v":{"$error":"#REF!"}}]
[null,null,null,null,null,null,null,{"$error":"#REF!"},null,null,null,null,null,null,null,null,null,{"$f":"VLOOKUP(G86,#REF!,3,FALSE)","v":{"$error":"#REF!"}},{"$f":"VLOOKUP(G86,#REF!,6,FALSE)","v":{"$error":"#REF!"}},{"$f":"VLOOKUP(G86,#REF!,4,FALSE)","v":{"$error":"#REF!"}}]
[null,null,null,null,null,null,null,{"$error":"#REF!"},null,null,null,null,null,null,null,null,null,{"$f":"VLOOKUP(G87,#REF!,3,FALSE)","v":{"$error":"#REF!"}},{"$f":"VLOOKUP(G87,#REF!,6,FALSE)","v":{"$error":"#REF!"}},{"$f":"VLOOKUP(G87,#REF!,4,FALSE)","v":{"$error":"#REF!"}}]
[null,null,null,null,null,null,null,{"$error":"#REF!"},null,null,null,null,null,null,null,null,null,{"$f":"VLOOKUP(G88,#REF!,3,FALSE)","v":{"$error":"#REF!"}},{"$f":"VLOOKUP(G88,#REF!,6,FALSE)","v":{"$error":"#REF!"}},{"$f":"VLOOKUP(G88,#REF!,4,FALSE)","v":{"$error":"#REF!"}}]
[null,null,null,null,null,null,null,{"$error":"#REF!"},null,null,null,null,null,null,null,null,null,{"$f":"VLOOKUP(G89,#REF!,3,FALSE)","v":{"$error":"#REF!"}},{"$f":"VLOOKUP(G89,#REF!,6,FALSE)","v":{"$error":"#REF!"}},{"$f":"VLOOKUP(G89,#REF!,4,FALSE)","v":{"$error":"#REF!"}}]
[null,null,null,null,null,null,null,{"$error":"#REF!"},null,null,null,null,null,null,null,null,null,{"$f":"VLOOKUP(G90,#REF!,3,FALSE)","v":{"$error":"#REF!"}},{"$f":"VLOOKUP(G90,#REF!,6,FALSE)","v":{"$error":"#REF!"}},{"$f":"VLOOKUP(G90,#REF!,4,FALSE)","v":{"$error":"#REF!"}}]
[null,null,null,null,null,null,null,{"$error":"#REF!"},null,null,null,null,null,null,null,null,null,{"$f":"VLOOKUP(G91,#REF!,3,FALSE)","v":{"$error":"#REF!"}},{"$f":"VLOOKUP(G91,#REF!,6,FALSE)","v":{"$error":"#REF!"}},{"$f":"VLOOKUP(G91,#REF!,4,FALSE)","v":{"$error":"#REF!"}}]
[null,null,null,null,null,null,null,{"$error":"#REF!"},null,null,null,null,null,null,null,null,null,{"$f":"VLOOKUP(G92,#REF!,3,FALSE)","v":{"$error":"#REF!"}},{"$f":"VLOOKUP(G92,#REF!,6,FALSE)","v":{"$error":"#REF!"}},{"$f":"VLOOKUP(G92,#REF!,4,FALSE)","v":{"$error":"#REF!"}}]
[null,null,null,null,null,null,null,{"$error":"#REF!"},null,null,null,null,null,null,null,null,null,{"$f":"VLOOKUP(G93,#REF!,3,FALSE)","v":{"$error":"#REF!"}},{"$f":"VLOOKUP(G93,#REF!,6,FALSE)","v":{"$error":"#REF!"}},{"$f":"VLOOKUP(G93,#REF!,4,FALSE)","v":{"$error":"#REF!"}}]
[null,null,null,null,null,null,null,{"$error":"#REF!"},null,null,null,null,null,null,null,null,null,{"$f":"VLOOKUP(G94,#REF!,3,FALSE)","v":{"$error":"#REF!"}},{"$f":"VLOOKUP(G94,#REF!,6,FALSE)","v":{"$error":"#REF!"}},{"$f":"VLOOKUP(G94,#REF!,4,FALSE)","v":{"$error":"#REF!"}}]
[null,null,null,null,null,null,null,{"$error":"#REF!"},null,null,null,null,null,null,null,null,null,{"$f":"VLOOKUP(G95,#REF!,3,FALSE)","v":{"$error":"#REF!"}},{"$f":"VLOOKUP(G95,#REF!,6,FALSE)","v":{"$error":"#REF!"}},{"$f":"VLOOKUP(G95,#REF!,4,FALSE)","v":{"$error":"#REF!"}}]
[null,null,null,null,null,null,null,{"$error":"#REF!"},null,null,null,null,null,null,null,null,null,{"$f":"VLOOKUP(G96,#REF!,3,FALSE)","v":{"$error":"#REF!"}},{"$f":"VLOOKUP(G96,#REF!,6,FALSE)","v":{"$error":"#REF!"}},{"$f":"VLOOKUP(G96,#REF!,4,FALSE)","v":{"$error":"#REF!"}}]
[null,null,null,null,null,null,null,{"$error":"#REF!"},null,null,null,null,null,null,null,null,null,{"$f":"VLOOKUP(G97,#REF!,3,FALSE)","v":{"$error":"#REF!"}},{"$f":"VLOOKUP(G97,#REF!,6,FALSE)","v":{"$error":"#REF!"}},{"$f":"VLOOKUP(G97,#REF!,4,FALSE)","v":{"$error":"#REF!"}}]
[null,null,null,null,null,null,null,{"$error":"#REF!"},null,null,null,null,null,null,null,null,null,{"$f":"VLOOKUP(G98,#REF!,3,FALSE)","v":{"$error":"#REF!"}},{"$f":"VLOOKUP(G98,#REF!,6,FALSE)","v":{"$error":"#REF!"}},{"$f":"VLOOKUP(G98,#REF!,4,FALSE)","v":{"$error":"#REF!"}}]
[null,null,null,null,null,null,null,{"$error":"#REF!"},null,null,null,null,null,null,null,null,null,{"$f":"VLOOKUP(G99,#REF!,3,FALSE)","v":{"$error":"#REF!"}},{"$f":"VLOOKUP(G99,#REF!,6,FALSE)","v":{"$error":"#REF!"}},{"$f":"VLOOKUP(G99,#REF!,4,FALSE)","v":{"$error":"#REF!"}}]
[null,null,null,null,null,null,null,{"$error":"#REF!"},null,null,null,null,null,null,null,null,null,{"$f":"VLOOKUP(G100,#REF!,3,FALSE)","v":{"$error":"#REF!"}},{"$f":"VLOOKUP(G100,#REF!,6,FALSE)","v":{"$error":"#REF!"}},{"$f":"VLOOKUP(G100,#REF!,4,FALSE)","v":{"$error":"#REF!"}}]
[null,null,null,null,null,null,null,{"$error":"#REF!"},null,null,null,null,null,null,null,null,null,{"$f":"VLOOKUP(G101,#REF!,3,FALSE)","v":{"$error":"#REF!"}},{"$f":"VLOOKUP(G101,#REF!,6,FALSE)","v":{"$error":"#REF!"}},{"$f":"VLOOKUP(G101,#REF!,4,FALSE)","v":{"$error":"#REF!"}}]
[null,null,null,null,null,null,null,{"$error":"#REF!"},null,null,null,null,null,null,null,null,null,{"$f":"VLOOKUP(G102,#REF!,3,FALSE)","v":{"$error":"#REF!"}},{"$f":"VLOOKUP(G102,#REF!,6,FALSE)","v":{"$error":"#REF!"}},{"$f":"VLOOKUP(G102,#REF!,4,FALSE)","v":{"$error":"#REF!"}}]
[null,null,null,null,null,null,null,{"$error":"#REF!"},null,null,null,null,null,null,null,null,null,{"$f":"VLOOKUP(G103,#REF!,3,FALSE)","v":{"$error":"#REF!"}},{"$f":"VLOOKUP(G103,#REF!,6,FALSE)","v":{"$error":"#REF!"}},{"$f":"VLOOKUP(G103,#REF!,4,FALSE)","v":{"$error":"#REF!"}}]
[null,null,null,null,null,null,null,{"$error":"#REF!"},null,null,null,null,null,null,null,null,null,{"$f":"VLOOKUP(G104,#REF!,3,FALSE)","v":{"$error":"#REF!"}},{"$f":"VLOOKUP(G104,#REF!,6,FALSE)","v":{"$error":"#REF!"}},{"$f":"VLOOKUP(G104,#REF!,4,FALSE)","v":{"$error":"#REF!"}}]
[null,null,null,null,null,null,null,{"$error":"#REF!"},null,null,null,null,null,null,null,null,null,{"$f":"VLOOKUP(G105,#REF!,3,FALSE)","v":{"$error":"#REF!"}},{"$f":"VLOOKUP(G105,#REF!,6,FALSE)","v":{"$error":"#REF!"}},{"$f":"VLOOKUP(G105,#REF!,4,FALSE)","v":{"$error":"#REF!"}}]
[null,null,null,null,null,null,null,{"$error":"#REF!"},null,null,null,null,null,null,null,null,null,{"$f":"VLOOKUP(G106,#REF!,3,FALSE)","v":{"$error":"#REF!"}},{"$f":"VLOOKUP(G106,#REF!,6,FALSE)","v":{"$error":"#REF!"}},{"$f":"VLOOKUP(G106,#REF!,4,FALSE)","v":{"$error":"#REF!"}}]
[null,null,null,null,null,null,null,{"$error":"#REF!"},null,null,null,null,null,null,null,null,null,{"$f":"VLOOKUP(G107,#REF!,3,FALSE)","v":{"$error":"#REF!"}},{"$f":"VLOOKUP(G107,#REF!,6,FALSE)","v":{"$error":"#REF!"}},{"$f":"VLOOKUP(G107,#REF!,4,FALSE)","v":{"$error":"#REF!"}}]
[null,null,null,null,null,null,null,{"$error":"#REF!"},null,null,null,null,null,null,null,null,null,{"$f":"VLOOKUP(G108,#REF!,3,FALSE)","v":{"$error":"#REF!"}},{"$f":"VLOOKUP(G108,#REF!,6,FALSE)","v":{"$error":"#REF!"}},{"$f":"VLOOKUP(G108,#REF!,4,FALSE)","v":{"$error":"#REF!"}}]
[null,null,null,null,null,null,null,{"$error":"#REF!"},null,null,null,null,null,null,null,null,null,{"$f":"VLOOKUP(G109,#REF!,3,FALSE)","v":{"$error":"#REF!"}},{"$f":"VLOOKUP(G109,#REF!,6,FALSE)","v":{"$error":"#REF!"}},{"$f":"VLOOKUP(G109,#REF!,4,FALSE)","v":{"$error":"#REF!"}}]
[null,null,null,null,null,null,null,{"$error":"#REF!"},null,null,null,null,null,null,null,null,null,{"$f":"VLOOKUP(G110,#REF!,3,FALSE)","v":{"$error":"#REF!"}},{"$f":"VLOOKUP(G110,#REF!,6,FALSE)","v":{"$error":"#REF!"}},{"$f":"VLOOKUP(G110,#REF!,4,FALSE)","v":{"$error":"#REF!"}}]
[null,null,null,null,null,null,null,{"$error":"#REF!"},null,null,null,null,null,null,null,null,null,{"$f":"VLOOKUP(G111,#REF!,3,FALSE)","v":{"$error":"#REF!"}},{"$f":"VLOOKUP(G111,#REF!,6,FALSE)","v":{"$error":"#REF!"}},{"$f":"VLOOKUP(G111,#REF!,4,FALSE)","v":{"$error":"#REF!"}}]
[null,null,null,null,null,null,null,{"$error":"#REF!"},null,null,null,null,null,null,null,null,null,{"$f":"VLOOKUP(G112,#REF!,3,FALSE)","v":{"$error":"#REF!"}},{"$f":"VLOOKUP(G112,#REF!,6,FALSE)","v":{"$error":"#REF!"}},{"$f":"VLOOKUP(G112,#REF!,4,FALSE)","v":{"$error":"#REF!"}}]
[null,null,null,null,null,null,null,{"$error":"#REF!"},null,null,null,null,null,null,null,null,null,{"$f":"VLOOKUP(G113,#REF!,3,FALSE)","v":{"$error":"#REF!"}},{"$f":"VLOOKUP(G113,#REF!,6,FALSE)","v":{"$error":"#REF!"}},{"$f":"VLOOKUP(G113,#REF!,4,FALSE)","v":{"$error":"#REF!"}}]
[null,null,null,null,null,null,null,{"$error":"#REF!"},null,null,null,null,null,null,null,null,null,{"$f":"VLOOKUP(G114,#REF!,3,FALSE)","v":{"$error":"#REF!"}},{"$f":"VLOOKUP(G114,#REF!,6,FALSE)","v":{"$error":"#REF!"}},{"$f":"VLOOKUP(G114,#REF!,4,FALSE)","v":{"$error":"#REF!"}}]
[null,null,null,null,null,null,null,{"$error":"#REF!"},null,null,null,null,null,null,null,null,null,{"$f":"VLOOKUP(G115,#REF!,3,FALSE)","v":{"$error":"#REF!"}},{"$f":"VLOOKUP(G115,#REF!,6,FALSE)","v":{"$error":"#REF!"}},{"$f":"VLOOKUP(G115,#REF!,4,FALSE)","v":{"$error":"#REF!"}}]
[null,null,null,null,null,null,null,{"$error":"#REF!"},null,null,null,null,null,null,null,null,null,{"$f":"VLOOKUP(G116,#REF!,3,FALSE)","v":{"$error":"#REF!"}},{"$f":"VLOOKUP(G116,#REF!,6,FALSE)","v":{"$error":"#REF!"}},{"$f":"VLOOKUP(G116,#REF!,4,FALSE)","v":{"$error":"#REF!"}}]
[null,null,null,null,null,null,null,{"$f":"R117","v":{"$error":"#REF!"}},null,null,null,null,null,null,null,null,null,{"$f":"VLOOKUP(G117,#REF!,3,FALSE)","v":{"$error":"#REF!"}},{"$f":"VLOOKUP(G117,#REF!,6,FALSE)","v":{"$error":"#REF!"}},{"$f":"VLOOKUP(G117,#REF!,4,FALSE)","v":{"$error":"#REF!"}}]
[null,null,null,null,null,null,null,{"$error":"#REF!"},null,null,null,null,null,null,null,null,null,{"$f":"VLOOKUP(G118,#REF!,3,FALSE)","v":{"$error":"#REF!"}},{"$f":"VLOOKUP(G118,#REF!,6,FALSE)","v":{"$error":"#REF!"}},{"$f":"VLOOKUP(G118,#REF!,4,FALSE)","v":{"$error":"#REF!"}}]
[null,null,null,null,null,null,null,{"$error":"#REF!"},null,null,null,null,null,null,null,null,null,{"$f":"VLOOKUP(G119,#REF!,3,FALSE)","v":{"$error":"#REF!"}},{"$f":"VLOOKUP(G119,#REF!,6,FALSE)","v":{"$error":"#REF!"}},{"$f":"VLOOKUP(G119,#REF!,4,FALSE)","v":{"$error":"#REF!"}}]
[null,null,null,null,null,null,null,{"$error":"#REF!"},null,null,null,null,null,null,null,null,null,{"$f":"VLOOKUP(G120,#REF!,3,FALSE)","v":{"$error":"#REF!"}},{"$f":"VLOOKUP(G120,#REF!,6,FALSE)","v":{"$error":"#REF!"}},{"$f":"VLOOKUP(G120,#REF!,4,FALSE)","v":{"$error":"#REF!"}}]
[null,null,null,null,null,null,null,{"$error":"#REF!"},null,null,null,null,null,null,null,null,null,{"$f":"VLOOKUP(G121,#REF!,3,FALSE)","v":{"$error":"#REF!"}},{"$f":"VLOOKUP(G121,#REF!,6,FALSE)","v":{"$error":"#REF!"}},{"$f":"VLOOKUP(G121,#REF!,4,FALSE)","v":{"$error":"#REF!"}}]
[null,null,null,null,null,null,null,{"$error":"#REF!"},null,null,null,null,null,null,null,null,null,{"$f":"VLOOKUP(G122,#REF!,3,FALSE)","v":{"$error":"#REF!"}},{"$f":"VLOOKUP(G122,#REF!,6,FALSE)","v":{"$error":"#REF!"}},{"$f":"VLOOKUP(G122,#REF!,4,FALSE)","v":{"$error":"#REF!"}}]
[null,null,null,null,null,null,null,{"$error":"#REF!"},null,null,null,null,null,null,null,null,null,{"$f":"VLOOKUP(G123,#REF!,3,FALSE)","v":{"$error":"#REF!"}},{"$f":"VLOOKUP(G123,#REF!,6,FALSE)","v":{"$error":"#REF!"}},{"$f":"VLOOKUP(G123,#REF!,4,FALSE)","v":{"$error":"#REF!"}}]
[null,null,null,null,null,null,null,{"$error":"#REF!"},null,null,null,null,null,null,null,null,null,{"$f":"VLOOKUP(G124,#REF!,3,FALSE)","v":{"$error":"#REF!"}},{"$f":"VLOOKUP(G124,#REF!,6,FALSE)","v":{"$error":"#REF!"}},{"$f":"VLOOKUP(G124,#REF!,4,FALSE)","v":{"$error":"#REF!"}}]
[null,null,null,null,null,null,null,{"$error":"#REF!"},null,null,null,null,null,null,null,null,null,{"$f":"VLOOKUP(G125,#REF!,3,FALSE)","v":{"$error":"#REF!"}},{"$f":"VLOOKUP(G125,#REF!,6,FALSE)","v":{"$error":"#REF!"}},{"$f":"VLOOKUP(G125,#REF!,4,FALSE)","v":{"$error":"#REF!"}}]
[null,null,null,null,null,null,null,{"$error":"#REF!"},null,null,null,null,null,null,null,null,null,{"$f":"VLOOKUP(G126,#REF!,3,FALSE)","v":{"$error":"#REF!"}},{"$f":"VLOOKUP(G126,#REF!,6,FALSE)","v":{"$error":"#REF!"}},{"$f":"VLOOKUP(G126,#REF!,4,FALSE)","v":{"$error":"#REF!"}}]
[null,null,null,null,null,null,null,{"$error":"#REF!"},null,null,null,null,null,null,null,null,null,{"$f":"VLOOKUP(G127,#REF!,3,FALSE)","v":{"$error":"#REF!"}},{"$f":"VLOOKUP(G127,#REF!,6,FALSE)","v":{"$error":"#REF!"}},{"$f":"VLOOKUP(G127,#REF!,4,FALSE)","v":{"$error":"#REF!"}}]
[null,null,null,null,null,null,null,{"$error":"#REF!"},null,null,null,null,null,null,null,null,null,{"$f":"VLOOKUP(G128,#REF!,3,FALSE)","v":{"$error":"#REF!"}},{"$f":"VLOOKUP(G128,#REF!,6,FALSE)","v":{"$error":"#REF!"}},{"$f":"VLOOKUP(G128,#REF!,4,FALSE)","v":{"$error":"#REF!"}}]
[null,null,null,null,null,null,null,{"$error":"#REF!"},null,null,null,null,null,null,null,null,null,{"$f":"VLOOKUP(G129,#REF!,3,FALSE)","v":{"$error":"#REF!"}},{"$f":"VLOOKUP(G129,#REF!,6,FALSE)","v":{"$error":"#REF!"}},{"$f":"VLOOKUP(G129,#REF!,4,FALSE)","v":{"$error":"#REF!"}}]
[null,null,null,null,null,null,null,{"$error":"#REF!"},null,null,null,null,null,null,null,null,null,{"$f":"VLOOKUP(G130,#REF!,3,FALSE)","v":{"$error":"#REF!"}},{"$f":"VLOOKUP(G130,#REF!,6,FALSE)","v":{"$error":"#REF!"}},{"$f":"VLOOKUP(G130,#REF!,4,FALSE)","v":{"$error":"#REF!"}}]
[null,null,null,null,null,null,null,{"$error":"#REF!"},null,null,null,null,null,null,null,null,null,{"$f":"VLOOKUP(G131,#REF!,3,FALSE)","v":{"$error":"#REF!"}},{"$f":"VLOOKUP(G131,#REF!,6,FALSE)","v":{"$error":"#REF!"}},{"$f":"VLOOKUP(G131,#REF!,4,FALSE)","v":{"$error":"#REF!"}}]
[null,null,null,null,null,null,null,{"$error":"#REF!"},null,null,null,null,null,null,null,null,null,{"$f":"VLOOKUP(G132,#REF!,3,FALSE)","v":{"$error":"#REF!"}},{"$f":"VLOOKUP(G132,#REF!,6,FALSE)","v":{"$error":"#REF!"}},{"$f":"VLOOKUP(G132,#REF!,4,FALSE)","v":{"$error":"#REF!"}}]
[null,null,null,null,null,null,null,{"$error":"#REF!"},null,null,null,null,null,null,null,null,null,{"$f":"VLOOKUP(G133,#REF!,3,FALSE)","v":{"$error":"#REF!"}},{"$f":"VLOOKUP(G133,#REF!,6,FALSE)","v":{"$error":"#REF!"}},{"$f":"VLOOKUP(G133,#REF!,4,FALSE)","v":{"$error":"#REF!"}}]
[null,null,null,null,null,null,null,{"$error":"#REF!"},null,null,null,null,null,null,null,null,null,{"$f":"VLOOKUP(G134,#REF!,3,FALSE)","v":{"$error":"#REF!"}},{"$f":"VLOOKUP(G134,#REF!,6,FALSE)","v":{"$error":"#REF!"}},{"$f":"VLOOKUP(G134,#REF!,4,FALSE)","v":{"$error":"#REF!"}}]
[null,null,null,null,null,null,null,{"$error":"#REF!"},null,null,null,null,null,null,null,null,null,{"$f":"VLOOKUP(G135,#REF!,3,FALSE)","v":{"$error":"#REF!"}},{"$f":"VLOOKUP(G135,#REF!,6,FALSE)","v":{"$error":"#REF!"}},{"$f":"VLOOKUP(G135,#REF!,4,FALSE)","v":{"$error":"#REF!"}}]
[null,null,null,null,null,null,null,{"$error":"#REF!"},null,null,null,null,null,null,null,null,null,{"$f":"VLOOKUP(G136,#REF!,3,FALSE)","v":{"$error":"#REF!"}},{"$f":"VLOOKUP(G136,#REF!,6,FALSE)","v":{"$error":"#REF!"}},{"$f":"VLOOKUP(G136,#REF!,4,FALSE)","v":{"$error":"#REF!"}}]
[null,null,null,null,null,null,null,{"$error":"#REF!"},null,null,null,null,null,null,null,null,null,{"$f":"VLOOKUP(G137,#REF!,3,FALSE)","v":{"$error":"#REF!"}},{"$f":"VLOOKUP(G137,#REF!,6,FALSE)","v":{"$error":"#REF!"}},{"$f":"VLOOKUP(G137,#REF!,4,FALSE)","v":{"$error":"#REF!"}}]
[null,null,null,null,null,null,null,{"$error":"#REF!"},null,null,null,null,null,null,null,null,null,{"$f":"VLOOKUP(G138,#REF!,3,FALSE)","v":{"$error":"#REF!"}},{"$f":"VLOOKUP(G138,#REF!,6,FALSE)","v":{"$error":"#REF!"}},{"$f":"VLOOKUP(G138,#REF!,4,FALSE)","v":{"$error":"#REF!"}}]
[null,null,null,null,null,null,null,{"$error":"#REF!"},null,null,null,null,null,null,null,null,null,{"$f":"VLOOKUP(G139,#REF!,3,FALSE)","v":{"$error":"#REF!"}},{"$f":"VLOOKUP(G139,#REF!,6,FALSE)","v":{"$error":"#REF!"}},{"$f":"VLOOKUP(G139,#REF!,4,FALSE)","v":{"$error":"#REF!"}}]
[null,null,null,null,null,null,null,{"$error":"#REF!"},null,null,null,null,null,null,null,null,null,{"$f":"VLOOKUP(G140,#REF!,3,FALSE)","v":{"$error":"#REF!"}},{"$f":"VLOOKUP(G140,#REF!,6,FALSE)","v":{"$error":"#REF!"}},{"$f":"VLOOKUP(G140,#REF!,4,FALSE)","v":{"$error":"#REF!"}}]
[null,null,null,null,null,null,null,{"$error":"#REF!"},null,null,null,null,null,null,null,null,null,{"$f":"VLOOKUP(G141,#REF!,3,FALSE)","v":{"$error":"#REF!"}},{"$f":"VLOOKUP(G141,#REF!,6,FALSE)","v":{"$error":"#REF!"}},{"$f":"VLOOKUP(G141,#REF!,4,FALSE)","v":{"$error":"#REF!"}}]
[null,null,null,null,null,null,null,{"$error":"#REF!"},null,null,null,null,null,null,null,null,null,{"$f":"VLOOKUP(G142,#REF!,3,FALSE)","v":{"$error":"#REF!"}},{"$f":"VLOOKUP(G142,#REF!,6,FALSE)","v":{"$error":"#REF!"}},{"$f":"VLOOKUP(G142,#REF!,4,FALSE)","v":{"$error":"#REF!"}}]
[null,null,null,null,null,null,null,{"$f":"R143","v":{"$error":"#REF!"}},null,null,null,null,null,null,null,null,null,{"$f":"VLOOKUP(G143,#REF!,3,FALSE)","v":{"$error":"#REF!"}},{"$f":"VLOOKUP(G143,#REF!,6,FALSE)","v":{"$error":"#REF!"}},{"$f":"VLOOKUP(G143,#REF!,4,FALSE)","v":{"$error":"#REF!"}}]
[null,null,null,null,null,null,null,{"$error":"#REF!"},null,null,null,null,null,null,null,null,null,{"$f":"VLOOKUP(G144,#REF!,3,FALSE)","v":{"$error":"#REF!"}},{"$f":"VLOOKUP(G144,#REF!,6,FALSE)","v":{"$error":"#REF!"}},{"$f":"VLOOKUP(G144,#REF!,4,FALSE)","v":{"$error":"#REF!"}}]
[null,null,null,null,null,null,null,{"$error":"#REF!"},null,null,null,null,null,null,null,null,null,{"$f":"VLOOKUP(G145,#REF!,3,FALSE)","v":{"$error":"#REF!"}},{"$f":"VLOOKUP(G145,#REF!,6,FALSE)","v":{"$error":"#REF!"}},{"$f":"VLOOKUP(G145,#REF!,4,FALSE)","v":{"$error":"#REF!"}}]
[null,null,null,null,null,null,null,{"$error":"#REF!"},null,null,null,null,null,null,null,null,null,{"$f":"VLOOKUP(G146,#REF!,3,FALSE)","v":{"$error":"#REF!"}},{"$f":"VLOOKUP(G146,#REF!,6,FALSE)","v":{"$error":"#REF!"}},{"$f":"VLOOKUP(G146,#REF!,4,FALSE)","v":{"$error":"#REF!"}}]
[null,null,null,null,null,null,null,{"$error":"#REF!"},null,null,null,null,null,null,null,null,null,{"$f":"VLOOKUP(G147,#REF!,3,FALSE)","v":{"$error":"#REF!"}},{"$f":"VLOOKUP(G147,#REF!,6,FALSE)","v":{"$error":"#REF!"}},{"$f":"VLOOKUP(G147,#REF!,4,FALSE)","v":{"$error":"#REF!"}}]
[null,null,null,null,null,null,null,{"$error":"#REF!"},null,null,null,null,null,null,null,null,null,{"$f":"VLOOKUP(G148,#REF!,3,FALSE)","v":{"$error":"#REF!"}},{"$f":"VLOOKUP(G148,#REF!,6,FALSE)","v":{"$error":"#REF!"}},{"$f":"VLOOKUP(G148,#REF!,4,FALSE)","v":{"$error":"#REF!"}}]
[null,null,null,null,null,null,null,{"$error":"#REF!"},null,null,null,null,null,null,null,null,null,{"$f":"VLOOKUP(G149,#REF!,3,FALSE)","v":{"$error":"#REF!"}},{"$f":"VLOOKUP(G149,#REF!,6,FALSE)","v":{"$error":"#REF!"}},{"$f":"VLOOKUP(G149,#REF!,4,FALSE)","v":{"$error":"#REF!"}}]
[null,null,null,null,null,null,null,{"$error":"#REF!"},null,null,null,null,null,null,null,null,null,{"$f":"VLOOKUP(G150,#REF!,3,FALSE)","v":{"$error":"#REF!"}},{"$f":"VLOOKUP(G150,#REF!,6,FALSE)","v":{"$error":"#REF!"}},{"$f":"VLOOKUP(G150,#REF!,4,FALSE)","v":{"$error":"#REF!"}}]
[null,null,null,null,null,null,null,{"$error":"#REF!"},null,null,null,null,null,null,null,null,null,{"$f":"VLOOKUP(G151,#REF!,3,FALSE)","v":{"$error":"#REF!"}},{"$f":"VLOOKUP(G151,#REF!,6,FALSE)","v":{"$error":"#REF!"}},{"$f":"VLOOKUP(G151,#REF!,4,FALSE)","v":{"$error":"#REF!"}}]
[null,null,null,null,null,null,null,{"$error":"#REF!"},null,null,null,null,null,null,null,null,null,{"$f":"VLOOKUP(G152,#REF!,3,FALSE)","v":{"$error":"#REF!"}},{"$f":"VLOOKUP(G152,#REF!,6,FALSE)","v":{"$error":"#REF!"}},{"$f":"VLOOKUP(G152,#REF!,4,FALSE)","v":{"$error":"#REF!"}}]
[null,null,null,null,null,null,null,{"$error":"#REF!"},null,null,null,null,null,null,null,null,null,{"$f":"VLOOKUP(G153,#REF!,3,FALSE)","v":{"$error":"#REF!"}},{"$f":"VLOOKUP(G153,#REF!,6,FALSE)","v":{"$error":"#REF!"}},{"$f":"VLOOKUP(G153,#REF!,4,FALSE)","v":{"$error":"#REF!"}}]
[null,null,null,null,null,null,null,{"$error":"#REF!"},null,null,null,null,null,null,null,null,null,{"$f":"VLOOKUP(G154,#REF!,3,FALSE)","v":{"$error":"#REF!"}},{"$f":"VLOOKUP(G154,#REF!,6,FALSE)","v":{"$error":"#REF!"}},{"$f":"VLOOKUP(G154,#REF!,4,FALSE)","v":{"$error":"#REF!"}}]
[null,null,null,null,null,null,null,{"$error":"#REF!"},null,null,null,null,null,null,null,null,null,{"$f":"VLOOKUP(G155,#REF!,3,FALSE)","v":{"$error":"#REF!"}},{"$f":"VLOOKUP(G155,#REF!,6,FALSE)","v":{"$error":"#REF!"}},{"$f":"VLOOKUP(G155,#REF!,4,FALSE)","v":{"$error":"#REF!"}}]
[null,null,null,null,null,null,null,{"$error":"#REF!"},null,null,null,null,null,null,null,null,null,{"$f":"VLOOKUP(G156,#REF!,3,FALSE)","v":{"$error":"#REF!"}},{"$f":"VLOOKUP(G156,#REF!,6,FALSE)","v":{"$error":"#REF!"}},{"$f":"VLOOKUP(G156,#REF!,4,FALSE)","v":{"$error":"#REF!"}}]
[null,null,null,null,null,null,null,{"$error":"#REF!"},null,null,null,null,null,null,null,null,null,{"$f":"VLOOKUP(G157,#REF!,3,FALSE)","v":{"$error":"#REF!"}},{"$f":"VLOOKUP(G157,#REF!,6,FALSE)","v":{"$error":"#REF!"}},{"$f":"VLOOKUP(G157,#REF!,4,FALSE)","v":{"$error":"#REF!"}}]
[null,null,null,null,null,null,null,{"$error":"#REF!"},null,null,null,null,null,null,null,null,null,{"$f":"VLOOKUP(G158,#REF!,3,FALSE)","v":{"$error":"#REF!"}},{"$f":"VLOOKUP(G158,#REF!,6,FALSE)","v":{"$error":"#REF!"}},{"$f":"VLOOKUP(G158,#REF!,4,FALSE)","v":{"$error":"#REF!"}}]
[]
[]
[]
[]
[]
[]
[]
[]
[]
[]
[]
[]
[]
[]
[]
[]
[]
[]
[]
[]
[]
[]
[]
[]
[]
[]
[]
[]
[]
[]
[]
[]
[]
[]
[]
[]
[]
[]
[]
[]
[]
[]
[]
[]
[]
[]
[]
[]
[]
[]
[null,null,null,null,null,null,null,null,null,null,null,null,null,null,null,null,null,null,null,null,null,null,null,null,null,null,null,null,null,null,null,"Print/online","JA","E-Mailing",{"$f":"IF(#REF!=\"1/8 pagina\",0.125,IF(#REF!=\"1/6 pagina\",0.166,IF(#REF!=\"1/4 pagina\",0.25,IF(#REF!=\"1/3 pagina\",0.33,IF(#REF!=\"1/2 pagina\",0.5,IF(#REF!=\"2/3 pagina\",0.66,IF(#REF!=\"1/1 pagina\",1,IF(#REF!=\"2/1 pagina\",2))))))))","v":{"$error":"#REF!"}},{"$f":"IF(J5=\"Achterpagina\",1,0)","v":0},null,"1/4 pagina",150,null,"Bruto"]
[null,null,null,null,null,null,null,null,null,null,null,null,null,null,null,null,null,null,null,null,null,null,null,null,null,null,null,null,null,null,null,"Online",null,"G-Mailing",{"$f":"IF(#REF!=\"1/8 pagina\",0.125,IF(#REF!=\"1/6 pagina\",0.166,IF(#REF!=\"1/4 pagina\",0.25,IF(#REF!=\"1/3 pagina\",0.33,IF(#REF!=\"1/2 pagina\",0.5,IF(#REF!=\"2/3 pagina\",0.66,IF(#REF!=\"1/1 pagina\",1,IF(#REF!=\"2/1 pagina\",2))))))))","v":{"$error":"#REF!"}},{"$f":"IF(J6=\"Achterpagina\",1,0)","v":0},null,"1/2 pagina",220,null,"Inkoop"]
[null,null,null,null,null,null,null,null,null,null,null,null,null,null,null,null,null,null,null,null,null,null,null,null,null,null,null,null,null,null,null,null,null,"W-Mailing",{"$f":"IF(#REF!=\"1/8 pagina\",0.125,IF(#REF!=\"1/6 pagina\",0.166,IF(#REF!=\"1/4 pagina\",0.25,IF(#REF!=\"1/3 pagina\",0.33,IF(#REF!=\"1/2 pagina\",0.5,IF(#REF!=\"2/3 pagina\",0.66,IF(#REF!=\"1/1 pagina\",1,IF(#REF!=\"2/1 pagina\",2))))))))","v":{"$error":"#REF!"}},{"$f":"IF(J7=\"Achterpagina\",1,0)","v":0},null,"1/1 pagina",325,null,"Verrekenprijs"]
[null,null,null,null,null,null,null,null,null,null,null,null,null,null,null,null,null,null,null,null,null,null,null,null,null,null,null,null,null,null,null,null,null,"E+G-Mailing",{"$f":"IF(#REF!=\"1/8 pagina\",0.125,IF(#REF!=\"1/6 pagina\",0.166,IF(#REF!=\"1/4 pagina\",0.25,IF(#REF!=\"1/3 pagina\",0.33,IF(#REF!=\"1/2 pagina\",0.5,IF(#REF!=\"2/3 pagina\",0.66,IF(#REF!=\"1/1 pagina\",1,IF(#REF!=\"2/1 pagina\",2))))))))","v":{"$error":"#REF!"}},{"$f":"IF(J8=\"Achterpagina\",1,0)","v":0},null,null,450,null,"Netto verkoop"]
[null,null,null,null,null,null,null,null,null,null,null,null,null,null,null,null,null,null,null,null,null,null,null,null,null,null,null,null,null,null,null,null,null,"E+W-Mailing",{"$f":"IF(#REF!=\"1/8 pagina\",0.125,IF(#REF!=\"1/6 pagina\",0.166,IF(#REF!=\"1/4 pagina\",0.25,IF(#REF!=\"1/3 pagina\",0.33,IF(#REF!=\"1/2 pagina\",0.5,IF(#REF!=\"2/3 pagina\",0.66,IF(#REF!=\"1/1 pagina\",1,IF(#REF!=\"2/1 pagina\",2))))))))","v":{"$error":"#REF!"}},{"$f":"IF(J9=\"Achterpagina\",1,0)","v":0},null,null,650]
[null,null,null,null,null,null,null,null,null,null,null,null,null,null,null,null,null,null,null,null,null,null,null,null,null,null,null,null,null,null,null,null,null,"E+W+G-Mailing",{"$f":"IF(#REF!=\"1/8 pagina\",0.125,IF(#REF!=\"1/6 pagina\",0.166,IF(#REF!=\"1/4 pagina\",0.25,IF(#REF!=\"1/3 pagina\",0.33,IF(#REF!=\"1/2 pagina\",0.5,IF(#REF!=\"2/3 pagina\",0.66,IF(#REF!=\"1/1 pagina\",1,IF(#REF!=\"2/1 pagina\",2))))))))","v":{"$error":"#REF!"}},{"$f":"IF(J20=\"Achterpagina\",1,0)","v":0},null,null,900]
[null,null,null,null,null,null,null,null,null,null,null,null,null,null,null,null,null,null,null,null,null,null,null,null,null,null,null,null,null,null,null,null,null,"W+G-Mailing",{"$f":"IF(#REF!=\"1/8 pagina\",0.125,IF(#REF!=\"1/6 pagina\",0.166,IF(#REF!=\"1/4 pagina\",0.25,IF(#REF!=\"1/3 pagina\",0.33,IF(#REF!=\"1/2 pagina\",0.5,IF(#REF!=\"2/3 pagina\",0.66,IF(#REF!=\"1/1 pagina\",1,IF(#REF!=\"2/1 pagina\",2))))))))","v":{"$error":"#REF!"}},0,null,null,1300]
[null,null,null,null,null,null,null,null,null,null,null,null,null,null,null,null,null,null,null,null,null,null,null,null,null,null,null,null,null,null,null,null,null,null,{"$f":"IF(#REF!=\"1/8 pagina\",0.125,IF(#REF!=\"1/6 pagina\",0.166,IF(#REF!=\"1/4 pagina\",0.25,IF(#REF!=\"1/3 pagina\",0.33,IF(#REF!=\"1/2 pagina\",0.5,IF(#REF!=\"2/3 pagina\",0.66,IF(#REF!=\"1/1 pagina\",1,IF(#REF!=\"2/1 pagina\",2))))))))","v":{"$error":"#REF!"}},0,null,null,2500]
[null,null,null,null,null,null,null,null,null,null,null,null,null,null,null,null,null,null,null,null,null,null,null,null,null,null,null,null,null,null,null,null,null,null,{"$f":"IF(#REF!=\"1/8 pagina\",0.125,IF(#REF!=\"1/6 pagina\",0.166,IF(#REF!=\"1/4 pagina\",0.25,IF(#REF!=\"1/3 pagina\",0.33,IF(#REF!=\"1/2 pagina\",0.5,IF(#REF!=\"2/3 pagina\",0.66,IF(#REF!=\"1/1 pagina\",1,IF(#REF!=\"2/1 pagina\",2))))))))","v":{"$error":"#REF!"}},0,null,null,1500]
[null,null,null,null,null,null,null,null,null,null,null,null,null,null,null,null,null,null,null,null,null,null,null,null,null,null,null,null,null,null,null,null,null,null,{"$f":"IF(#REF!=\"1/8 pagina\",0.125,IF(#REF!=\"1/6 pagina\",0.166,IF(#REF!=\"1/4 pagina\",0.25,IF(#REF!=\"1/3 pagina\",0.33,IF(#REF!=\"1/2 pagina\",0.5,IF(#REF!=\"2/3 pagina\",0.66,IF(#REF!=\"1/1 pagina\",1,IF(#REF!=\"2/1 pagina\",2))))))))","v":{"$error":"#REF!"}},0,null,null,0]
[null,null,null,null,null,null,null,null,null,null,null,null,null,null,null,null,null,null,null,null,null,null,null,null,null,null,null,null,null,null,null,null,null,null,{"$f":"IF(#REF!=\"1/8 pagina\",0.125,IF(#REF!=\"1/6 pagina\",0.166,IF(#REF!=\"1/4 pagina\",0.25,IF(#REF!=\"1/3 pagina\",0.33,IF(#REF!=\"1/2 pagina\",0.5,IF(#REF!=\"2/3 pagina\",0.66,IF(#REF!=\"1/1 pagina\",1,IF(#REF!=\"2/1 pagina\",2))))))))","v":{"$error":"#REF!"}},0]
[null,null,null,null,null,null,null,null,null,null,null,null,null,null,null,null,null,null,null,null,null,null,null,null,null,null,null,null,null,null,null,null,null,null,{"$f":"IF(#REF!=\"1/8 pagina\",0.125,IF(#REF!=\"1/6 pagina\",0.166,IF(#REF!=\"1/4 pagina\",0.25,IF(#REF!=\"1/3 pagina\",0.33,IF(#REF!=\"1/2 pagina\",0.5,IF(#REF!=\"2/3 pagina\",0.66,IF(#REF!=\"1/1 pagina\",1,IF(#REF!=\"2/1 pagina\",2))))))))","v":{"$error":"#REF!"}},0]
[null,null,null,null,null,null,null,null,null,null,null,null,null,null,null,null,null,null,null,null,null,null,null,null,null,null,null,null,null,null,null,null,null,null,{"$f":"IF(#REF!=\"1/8 pagina\",0.125,IF(#REF!=\"1/6 pagina\",0.166,IF(#REF!=\"1/4 pagina\",0.25,IF(#REF!=\"1/3 pagina\",0.33,IF(#REF!=\"1/2 pagina\",0.5,IF(#REF!=\"2/3 pagina\",0.66,IF(#REF!=\"1/1 pagina\",1,IF(#REF!=\"2/1 pagina\",2))))))))","v":{"$error":"#REF!"}},0]
[null,null,null,null,null,null,null,null,null,null,null,null,null,null,null,null,null,null,null,null,null,null,null,null,null,null,null,null,null,null,null,null,null,null,{"$f":"IF(#REF!=\"1/8 pagina\",0.125,IF(#REF!=\"1/6 pagina\",0.166,IF(#REF!=\"1/4 pagina\",0.25,IF(#REF!=\"1/3 pagina\",0.33,IF(#REF!=\"1/2 pagina\",0.5,IF(#REF!=\"2/3 pagina\",0.66,IF(#REF!=\"1/1 pagina\",1,IF(#REF!=\"2/1 pagina\",2))))))))","v":{"$error":"#REF!"}},0]
[null,null,null,null,null,null,null,null,null,null,null,null,null,null,null,null,null,null,null,null,null,null,null,null,null,null,null,null,null,null,null,null,null,null,{"$f":"IF(#REF!=\"1/8 pagina\",0.125,IF(#REF!=\"1/6 pagina\",0.166,IF(#REF!=\"1/4 pagina\",0.25,IF(#REF!=\"1/3 pagina\",0.33,IF(#REF!=\"1/2 pagina\",0.5,IF(#REF!=\"2/3 pagina\",0.66,IF(#REF!=\"1/1 pagina\",1,IF(#REF!=\"2/1 pagina\",2))))))))","v":{"$error":"#REF!"}},0]
[null,null,null,null,null,null,null,null,null,null,null,null,null,null,null,null,null,null,null,null,null,null,null,null,null,null,null,null,null,null,null,null,null,null,{"$f":"IF(#REF!=\"1/8 pagina\",0.125,IF(#REF!=\"1/6 pagina\",0.166,IF(#REF!=\"1/4 pagina\",0.25,IF(#REF!=\"1/3 pagina\",0.33,IF(#REF!=\"1/2 pagina\",0.5,IF(#REF!=\"2/3 pagina\",0.66,IF(#REF!=\"1/1 pagina\",1,IF(#REF!=\"2/1 pagina\",2))))))))","v":{"$error":"#REF!"}},0]
[null,null,null,null,null,null,null,null,null,null,null,null,null,null,null,null,null,null,null,null,null,null,null,null,null,null,null,null,null,null,null,null,null,null,{"$f":"IF(#REF!=\"1/8 pagina\",0.125,IF(#REF!=\"1/6 pagina\",0.166,IF(#REF!=\"1/4 pagina\",0.25,IF(#REF!=\"1/3 pagina\",0.33,IF(#REF!=\"1/2 pagina\",0.5,IF(#REF!=\"2/3 pagina\",0.66,IF(#REF!=\"1/1 pagina\",1,IF(#REF!=\"2/1 pagina\",2))))))))","v":{"$error":"#REF!"}},0]
[null,null,null,null,null,null,null,null,null,null,null,null,null,null,null,null,null,null,null,null,null,null,null,null,null,null,null,null,null,null,null,null,null,null,{"$f":"IF(#REF!=\"1/8 pagina\",0.125,IF(#REF!=\"1/6 pagina\",0.166,IF(#REF!=\"1/4 pagina\",0.25,IF(#REF!=\"1/3 pagina\",0.33,IF(#REF!=\"1/2 pagina\",0.5,IF(#REF!=\"2/3 pagina\",0.66,IF(#REF!=\"1/1 pagina\",1,IF(#REF!=\"2/1 pagina\",2))))))))","v":{"$error":"#REF!"}},0]
[null,null,null,null,null,null,null,null,null,null,null,null,null,null,null,null,null,null,null,null,null,null,null,null,null,null,null,null,null,null,null,null,null,null,{"$f":"IF(#REF!=\"1/8 pagina\",0.125,IF(#REF!=\"1/6 pagina\",0.166,IF(#REF!=\"1/4 pagina\",0.25,IF(#REF!=\"1/3 pagina\",0.33,IF(#REF!=\"1/2 pagina\",0.5,IF(#REF!=\"2/3 pagina\",0.66,IF(#REF!=\"1/1 pagina\",1,IF(#REF!=\"2/1 pagina\",2))))))))","v":{"$error":"#REF!"}},0]
[null,null,null,null,null,null,null,null,null,null,null,null,null,null,null,null,null,null,null,null,null,null,null,null,null,null,null,null,null,null,null,null,null,null,{"$f":"IF(#REF!=\"1/8 pagina\",0.125,IF(#REF!=\"1/6 pagina\",0.166,IF(#REF!=\"1/4 pagina\",0.25,IF(#REF!=\"1/3 pagina\",0.33,IF(#REF!=\"1/2 pagina\",0.5,IF(#REF!=\"2/3 pagina\",0.66,IF(#REF!=\"1/1 pagina\",1,IF(#REF!=\"2/1 pagina\",2))))))))","v":{"$error":"#REF!"}},0]
[null,null,null,null,null,null,null,null,null,null,null,null,null,null,null,null,null,null,null,null,null,null,null,null,null,null,null,null,null,null,null,null,null,null,{"$f":"IF(#REF!=\"1/8 pagina\",0.125,IF(#REF!=\"1/6 pagina\",0.166,IF(#REF!=\"1/4 pagina\",0.25,IF(#REF!=\"1/3 pagina\",0.33,IF(#REF!=\"1/2 pagina\",0.5,IF(#REF!=\"2/3 pagina\",0.66,IF(#REF!=\"1/1 pagina\",1,IF(#REF!=\"2/1 pagina\",2))))))))","v":{"$error":"#REF!"}},0]
[null,null,null,null,null,null,null,null,null,null,null,null,null,null,null,null,null,null,null,null,null,null,null,null,null,null,null,null,null,null,null,null,null,null,{"$f":"IF(#REF!=\"1/8 pagina\",0.125,IF(#REF!=\"1/6 pagina\",0.166,IF(#REF!=\"1/4 pagina\",0.25,IF(#REF!=\"1/3 pagina\",0.33,IF(#REF!=\"1/2 pagina\",0.5,IF(#REF!=\"2/3 pagina\",0.66,IF(#REF!=\"1/1 pagina\",1,IF(#REF!=\"2/1 pagina\",2))))))))","v":{"$error":"#REF!"}},0]
[null,null,null,null,null,null,null,null,null,null,null,null,null,null,null,null,null,null,null,null,null,null,null,null,null,null,null,null,null,null,null,null,null,null,{"$f":"IF(#REF!=\"1/8 pagina\",0.125,IF(#REF!=\"1/6 pagina\",0.166,IF(#REF!=\"1/4 pagina\",0.25,IF(#REF!=\"1/3 pagina\",0.33,IF(#REF!=\"1/2 pagina\",0.5,IF(#REF!=\"2/3 pagina\",0.66,IF(#REF!=\"1/1 pagina\",1,IF(#REF!=\"2/1 pagina\",2))))))))","v":{"$error":"#REF!"}},0]
[null,null,null,null,null,null,null,null,null,null,null,null,null,null,null,null,null,null,null,null,null,null,null,null,null,null,null,null,null,null,null,null,null,null,{"$f":"IF(#REF!=\"1/8 pagina\",0.125,IF(#REF!=\"1/6 pagina\",0.166,IF(#REF!=\"1/4 pagina\",0.25,IF(#REF!=\"1/3 pagina\",0.33,IF(#REF!=\"1/2 pagina\",0.5,IF(#REF!=\"2/3 pagina\",0.66,IF(#REF!=\"1/1 pagina\",1,IF(#REF!=\"2/1 pagina\",2))))))))","v":{"$error":"#REF!"}},0]
[null,null,null,null,null,null,null,null,null,null,null,null,null,null,null,null,null,null,null,null,null,null,null,null,null,null,null,null,null,null,null,null,null,null,{"$f":"IF(#REF!=\"1/8 pagina\",0.125,IF(#REF!=\"1/6 pagina\",0.166,IF(#REF!=\"1/4 pagina\",0.25,IF(#REF!=\"1/3 pagina\",0.33,IF(#REF!=\"1/2 pagina\",0.5,IF(#REF!=\"2/3 pagina\",0.66,IF(#REF!=\"1/1 pagina\",1,IF(#REF!=\"2/1 pagina\",2))))))))","v":{"$error":"#REF!"}},0]
[null,null,null,null,null,null,null,null,null,null,null,null,null,null,null,null,null,null,null,null,null,null,null,null,null,null,null,null,null,null,null,null,null,null,{"$f":"IF(#REF!=\"1/8 pagina\",0.125,IF(#REF!=\"1/6 pagina\",0.166,IF(#REF!=\"1/4 pagina\",0.25,IF(#REF!=\"1/3 pagina\",0.33,IF(#REF!=\"1/2 pagina\",0.5,IF(#REF!=\"2/3 pagina\",0.66,IF(#REF!=\"1/1 pagina\",1,IF(#REF!=\"2/1 pagina\",2))))))))","v":{"$error":"#REF!"}},0]
[null,null,null,null,null,null,null,null,null,null,null,null,null,null,null,null,null,null,null,null,null,null,null,null,null,null,null,null,null,null,null,null,null,null,{"$f":"IF(#REF!=\"1/8 pagina\",0.125,IF(#REF!=\"1/6 pagina\",0.166,IF(#REF!=\"1/4 pagina\",0.25,IF(#REF!=\"1/3 pagina\",0.33,IF(#REF!=\"1/2 pagina\",0.5,IF(#REF!=\"2/3 pagina\",0.66,IF(#REF!=\"1/1 pagina\",1,IF(#REF!=\"2/1 pagina\",2))))))))","v":{"$error":"#REF!"}},0]
[null,null,null,null,null,null,null,null,null,null,null,null,null,null,null,null,null,null,null,null,null,null,null,null,null,null,null,null,null,null,null,null,null,null,{"$f":"IF(#REF!=\"1/8 pagina\",0.125,IF(#REF!=\"1/6 pagina\",0.166,IF(#REF!=\"1/4 pagina\",0.25,IF(#REF!=\"1/3 pagina\",0.33,IF(#REF!=\"1/2 pagina\",0.5,IF(#REF!=\"2/3 pagina\",0.66,IF(#REF!=\"1/1 pagina\",1,IF(#REF!=\"2/1 pagina\",2))))))))","v":{"$error":"#REF!"}},0]
[null,null,null,null,null,null,null,null,null,null,null,null,null,null,null,null,null,null,null,null,null,null,null,null,null,null,null,null,null,null,null,null,null,null,{"$f":"IF(#REF!=\"1/8 pagina\",0.125,IF(#REF!=\"1/6 pagina\",0.166,IF(#REF!=\"1/4 pagina\",0.25,IF(#REF!=\"1/3 pagina\",0.33,IF(#REF!=\"1/2 pagina\",0.5,IF(#REF!=\"2/3 pagina\",0.66,IF(#REF!=\"1/1 pagina\",1,IF(#REF!=\"2/1 pagina\",2))))))))","v":{"$error":"#REF!"}},0]
[null,null,null,null,null,null,null,null,null,null,null,null,null,null,null,null,null,null,null,null,null,null,null,null,null,null,null,null,null,null,null,null,null,null,{"$f":"IF(#REF!=\"1/8 pagina\",0.125,IF(#REF!=\"1/6 pagina\",0.166,IF(#REF!=\"1/4 pagina\",0.25,IF(#REF!=\"1/3 pagina\",0.33,IF(#REF!=\"1/2 pagina\",0.5,IF(#REF!=\"2/3 pagina\",0.66,IF(#REF!=\"1/1 pagina\",1,IF(#REF!=\"2/1 pagina\",2))))))))","v":{"$error":"#REF!"}},0]
[null,null,null,null,null,null,null,null,null,null,null,null,null,null,null,null,null,null,null,null,null,null,null,null,null,null,null,null,null,null,null,null,null,null,{"$f":"IF(#REF!=\"1/8 pagina\",0.125,IF(#REF!=\"1/6 pagina\",0.166,IF(#REF!=\"1/4 pagina\",0.25,IF(#REF!=\"1/3 pagina\",0.33,IF(#REF!=\"1/2 pagina\",0.5,IF(#REF!=\"2/3 pagina\",0.66,IF(#REF!=\"1/1 pagina\",1,IF(#REF!=\"2/1 pagina\",2))))))))","v":{"$error":"#REF!"}},{"$f":"IF(#REF!=\"Achterpagina\",1,0)","v":{"$error":"#REF!"}}]
[null,null,null,null,null,null,null,null,null,null,null,null,null,null,null,null,null,null,null,null,null,null,null,null,null,null,null,null,null,null,null,null,null,null,{"$f":"IF(#REF!=\"1/8 pagina\",0.125,IF(#REF!=\"1/6 pagina\",0.166,IF(#REF!=\"1/4 pagina\",0.25,IF(#REF!=\"1/3 pagina\",0.33,IF(#REF!=\"1/2 pagina\",0.5,IF(#REF!=\"2/3 pagina\",0.66,IF(#REF!=\"1/1 pagina\",1,IF(#REF!=\"2/1 pagina\",2))))))))","v":{"$error":"#REF!"}},{"$f":"IF(J45=\"Achterpagina\",1,0)","v":0}]
[null,null,null,null,null,null,null,null,null,null,null,null,null,null,null,null,null,null,null,null,null,null,null,null,null,null,null,null,null,null,null,null,null,null,{"$f":"IF(#REF!=\"1/8 pagina\",0.125,IF(#REF!=\"1/6 pagina\",0.166,IF(#REF!=\"1/4 pagina\",0.25,IF(#REF!=\"1/3 pagina\",0.33,IF(#REF!=\"1/2 pagina\",0.5,IF(#REF!=\"2/3 pagina\",0.66,IF(#REF!=\"1/1 pagina\",1,IF(#REF!=\"2/1 pagina\",2))))))))","v":{"$error":"#REF!"}},0]
[null,null,null,null,null,null,null,null,null,null,null,null,null,null,null,null,null,null,null,null,null,null,null,null,null,null,null,null,null,null,null,null,null,null,{"$f":"IF(#REF!=\"1/8 pagina\",0.125,IF(#REF!=\"1/6 pagina\",0.166,IF(#REF!=\"1/4 pagina\",0.25,IF(#REF!=\"1/3 pagina\",0.33,IF(#REF!=\"1/2 pagina\",0.5,IF(#REF!=\"2/3 pagina\",0.66,IF(#REF!=\"1/1 pagina\",1,IF(#REF!=\"2/1 pagina\",2))))))))","v":{"$error":"#REF!"}},0]
[null,null,null,null,null,null,null,null,null,null,null,null,null,null,null,null,null,null,null,null,null,null,null,null,null,null,null,null,null,null,null,null,null,null,{"$f":"IF(#REF!=\"1/8 pagina\",0.125,IF(#REF!=\"1/6 pagina\",0.166,IF(#REF!=\"1/4 pagina\",0.25,IF(#REF!=\"1/3 pagina\",0.33,IF(#REF!=\"1/2 pagina\",0.5,IF(#REF!=\"2/3 pagina\",0.66,IF(#REF!=\"1/1 pagina\",1,IF(#REF!=\"2/1 pagina\",2))))))))","v":{"$error":"#REF!"}},0]
[null,null,null,null,null,null,null,null,null,null,null,null,null,null,null,null,null,null,null,null,null,null,null,null,null,null,null,null,null,null,null,null,null,null,{"$f":"IF(#REF!=\"1/8 pagina\",0.125,IF(#REF!=\"1/6 pagina\",0.166,IF(#REF!=\"1/4 pagina\",0.25,IF(#REF!=\"1/3 pagina\",0.33,IF(#REF!=\"1/2 pagina\",0.5,IF(#REF!=\"2/3 pagina\",0.66,IF(#REF!=\"1/1 pagina\",1,IF(#REF!=\"2/1 pagina\",2))))))))","v":{"$error":"#REF!"}},0]
[null,null,null,null,null,null,null,null,null,null,null,null,null,null,null,null,null,null,null,null,null,null,null,null,null,null,null,null,null,null,null,null,null,null,{"$f":"IF(#REF!=\"1/8 pagina\",0.125,IF(#REF!=\"1/6 pagina\",0.166,IF(#REF!=\"1/4 pagina\",0.25,IF(#REF!=\"1/3 pagina\",0.33,IF(#REF!=\"1/2 pagina\",0.5,IF(#REF!=\"2/3 pagina\",0.66,IF(#REF!=\"1/1 pagina\",1,IF(#REF!=\"2/1 pagina\",2))))))))","v":{"$error":"#REF!"}},0]
[null,null,null,null,null,null,null,null,null,null,null,null,null,null,null,null,null,null,null,null,null,null,null,null,null,null,null,null,null,null,null,null,null,null,{"$f":"IF(#REF!=\"1/8 pagina\",0.125,IF(#REF!=\"1/6 pagina\",0.166,IF(#REF!=\"1/4 pagina\",0.25,IF(#REF!=\"1/3 pagina\",0.33,IF(#REF!=\"1/2 pagina\",0.5,IF(#REF!=\"2/3 pagina\",0.66,IF(#REF!=\"1/1 pagina\",1,IF(#REF!=\"2/1 pagina\",2))))))))","v":{"$error":"#REF!"}},0]
[null,null,null,null,null,null,null,null,null,null,null,null,null,null,null,null,null,null,null,null,null,null,null,null,null,null,null,null,null,null,null,null,null,null,{"$f":"IF(#REF!=\"1/8 pagina\",0.125,IF(#REF!=\"1/6 pagina\",0.166,IF(#REF!=\"1/4 pagina\",0.25,IF(#REF!=\"1/3 pagina\",0.33,IF(#REF!=\"1/2 pagina\",0.5,IF(#REF!=\"2/3 pagina\",0.66,IF(#REF!=\"1/1 pagina\",1,IF(#REF!=\"2/1 pagina\",2))))))))","v":{"$error":"#REF!"}},0]
[null,null,null,null,null,null,null,null,null,null,null,null,null,null,null,null,null,null,null,null,null,null,null,null,null,null,null,null,null,null,null,null,null,null,{"$f":"IF(#REF!=\"1/8 pagina\",0.125,IF(#REF!=\"1/6 pagina\",0.166,IF(#REF!=\"1/4 pagina\",0.25,IF(#REF!=\"1/3 pagina\",0.33,IF(#REF!=\"1/2 pagina\",0.5,IF(#REF!=\"2/3 pagina\",0.66,IF(#REF!=\"1/1 pagina\",1,IF(#REF!=\"2/1 pagina\",2))))))))","v":{"$error":"#REF!"}},0]
[null,null,null,null,null,null,null,null,null,null,null,null,null,null,null,null,null,null,null,null,null,null,null,null,null,null,null,null,null,null,null,null,null,null,{"$f":"IF(#REF!=\"1/8 pagina\",0.125,IF(#REF!=\"1/6 pagina\",0.166,IF(#REF!=\"1/4 pagina\",0.25,IF(#REF!=\"1/3 pagina\",0.33,IF(#REF!=\"1/2 pagina\",0.5,IF(#REF!=\"2/3 pagina\",0.66,IF(#REF!=\"1/1 pagina\",1,IF(#REF!=\"2/1 pagina\",2))))))))","v":{"$error":"#REF!"}},0]
[null,null,null,null,null,null,null,null,null,null,null,null,null,null,null,null,null,null,null,null,null,null,null,null,null,null,null,null,null,null,null,null,null,null,{"$f":"IF(#REF!=\"1/8 pagina\",0.125,IF(#REF!=\"1/6 pagina\",0.166,IF(#REF!=\"1/4 pagina\",0.25,IF(#REF!=\"1/3 pagina\",0.33,IF(#REF!=\"1/2 pagina\",0.5,IF(#REF!=\"2/3 pagina\",0.66,IF(#REF!=\"1/1 pagina\",1,IF(#REF!=\"2/1 pagina\",2))))))))","v":{"$error":"#REF!"}},0]
[null,null,null,null,null,null,null,null,null,null,null,null,null,null,null,null,null,null,null,null,null,null,null,null,null,null,null,null,null,null,null,null,null,null,{"$f":"IF(#REF!=\"1/8 pagina\",0.125,IF(#REF!=\"1/6 pagina\",0.166,IF(#REF!=\"1/4 pagina\",0.25,IF(#REF!=\"1/3 pagina\",0.33,IF(#REF!=\"1/2 pagina\",0.5,IF(#REF!=\"2/3 pagina\",0.66,IF(#REF!=\"1/1 pagina\",1,IF(#REF!=\"2/1 pagina\",2))))))))","v":{"$error":"#REF!"}},0]
[null,null,null,null,null,null,null,null,null,null,null,null,null,null,null,null,null,null,null,null,null,null,null,null,null,null,null,null,null,null,null,null,null,null,{"$f":"IF(#REF!=\"1/8 pagina\",0.125,IF(#REF!=\"1/6 pagina\",0.166,IF(#REF!=\"1/4 pagina\",0.25,IF(#REF!=\"1/3 pagina\",0.33,IF(#REF!=\"1/2 pagina\",0.5,IF(#REF!=\"2/3 pagina\",0.66,IF(#REF!=\"1/1 pagina\",1,IF(#REF!=\"2/1 pagina\",2))))))))","v":{"$error":"#REF!"}},0]
[null,null,null,null,null,null,null,null,null,null,null,null,null,null,null,null,null,null,null,null,null,null,null,null,null,null,null,null,null,null,null,null,null,null,{"$f":"IF(#REF!=\"1/8 pagina\",0.125,IF(#REF!=\"1/6 pagina\",0.166,IF(#REF!=\"1/4 pagina\",0.25,IF(#REF!=\"1/3 pagina\",0.33,IF(#REF!=\"1/2 pagina\",0.5,IF(#REF!=\"2/3 pagina\",0.66,IF(#REF!=\"1/1 pagina\",1,IF(#REF!=\"2/1 pagina\",2))))))))","v":{"$error":"#REF!"}},0]
[null,null,null,null,null,null,null,null,null,null,null,null,null,null,null,null,null,null,null,null,null,null,null,null,null,null,null,null,null,null,null,null,null,null,{"$f":"IF(#REF!=\"1/8 pagina\",0.125,IF(#REF!=\"1/6 pagina\",0.166,IF(#REF!=\"1/4 pagina\",0.25,IF(#REF!=\"1/3 pagina\",0.33,IF(#REF!=\"1/2 pagina\",0.5,IF(#REF!=\"2/3 pagina\",0.66,IF(#REF!=\"1/1 pagina\",1,IF(#REF!=\"2/1 pagina\",2))))))))","v":{"$error":"#REF!"}},0]
[null,null,null,null,null,null,null,null,null,null,null,null,null,null,null,null,null,null,null,null,null,null,null,null,null,null,null,null,null,null,null,null,null,null,{"$f":"IF(#REF!=\"1/8 pagina\",0.125,IF(#REF!=\"1/6 pagina\",0.166,IF(#REF!=\"1/4 pagina\",0.25,IF(#REF!=\"1/3 pagina\",0.33,IF(#REF!=\"1/2 pagina\",0.5,IF(#REF!=\"2/3 pagina\",0.66,IF(#REF!=\"1/1 pagina\",1,IF(#REF!=\"2/1 pagina\",2))))))))","v":{"$error":"#REF!"}},0]
[null,null,null,null,null,null,null,null,null,null,null,null,null,null,null,null,null,null,null,null,null,null,null,null,null,null,null,null,null,null,null,null,null,null,{"$f":"IF(#REF!=\"1/8 pagina\",0.125,IF(#REF!=\"1/6 pagina\",0.166,IF(#REF!=\"1/4 pagina\",0.25,IF(#REF!=\"1/3 pagina\",0.33,IF(#REF!=\"1/2 pagina\",0.5,IF(#REF!=\"2/3 pagina\",0.66,IF(#REF!=\"1/1 pagina\",1,IF(#REF!=\"2/1 pagina\",2))))))))","v":{"$error":"#REF!"}},0]
[null,null,null,null,null,null,null,null,null,null,null,null,null,null,null,null,null,null,null,null,null,null,null,null,null,null,null,null,null,null,null,null,null,null,{"$f":"IF(#REF!=\"1/8 pagina\",0.125,IF(#REF!=\"1/6 pagina\",0.166,IF(#REF!=\"1/4 pagina\",0.25,IF(#REF!=\"1/3 pagina\",0.33,IF(#REF!=\"1/2 pagina\",0.5,IF(#REF!=\"2/3 pagina\",0.66,IF(#REF!=\"1/1 pagina\",1,IF(#REF!=\"2/1 pagina\",2))))))))","v":{"$error":"#REF!"}},0]
[null,null,null,null,null,null,null,null,null,null,null,null,null,null,null,null,null,null,null,null,null,null,null,null,null,null,null,null,null,null,null,null,null,null,{"$f":"IF(#REF!=\"1/8 pagina\",0.125,IF(#REF!=\"1/6 pagina\",0.166,IF(#REF!=\"1/4 pagina\",0.25,IF(#REF!=\"1/3 pagina\",0.33,IF(#REF!=\"1/2 pagina\",0.5,IF(#REF!=\"2/3 pagina\",0.66,IF(#REF!=\"1/1 pagina\",1,IF(#REF!=\"2/1 pagina\",2))))))))","v":{"$error":"#REF!"}},0]
[null,null,null,null,null,null,null,null,null,null,null,null,null,null,null,null,null,null,null,null,null,null,null,null,null,null,null,null,null,null,null,null,null,null,{"$f":"IF(#REF!=\"1/8 pagina\",0.125,IF(#REF!=\"1/6 pagina\",0.166,IF(#REF!=\"1/4 pagina\",0.25,IF(#REF!=\"1/3 pagina\",0.33,IF(#REF!=\"1/2 pagina\",0.5,IF(#REF!=\"2/3 pagina\",0.66,IF(#REF!=\"1/1 pagina\",1,IF(#REF!=\"2/1 pagina\",2))))))))","v":{"$error":"#REF!"}},0]
[null,null,null,null,null,null,null,null,null,null,null,null,null,null,null,null,null,null,null,null,null,null,null,null,null,null,null,null,null,null,null,null,null,null,{"$f":"IF(#REF!=\"1/8 pagina\",0.125,IF(#REF!=\"1/6 pagina\",0.166,IF(#REF!=\"1/4 pagina\",0.25,IF(#REF!=\"1/3 pagina\",0.33,IF(#REF!=\"1/2 pagina\",0.5,IF(#REF!=\"2/3 pagina\",0.66,IF(#REF!=\"1/1 pagina\",1,IF(#REF!=\"2/1 pagina\",2))))))))","v":{"$error":"#REF!"}},0]
[null,null,null,null,null,null,null,null,null,null,null,null,null,null,null,null,null,null,null,null,null,null,null,null,null,null,null,null,null,null,null,null,null,null,{"$f":"IF(#REF!=\"1/8 pagina\",0.125,IF(#REF!=\"1/6 pagina\",0.166,IF(#REF!=\"1/4 pagina\",0.25,IF(#REF!=\"1/3 pagina\",0.33,IF(#REF!=\"1/2 pagina\",0.5,IF(#REF!=\"2/3 pagina\",0.66,IF(#REF!=\"1/1 pagina\",1,IF(#REF!=\"2/1 pagina\",2))))))))","v":{"$error":"#REF!"}},0]
[null,null,null,null,null,null,null,null,null,null,null,null,null,null,null,null,null,null,null,null,null,null,null,null,null,null,null,null,null,null,null,null,null,null,{"$f":"IF(#REF!=\"1/8 pagina\",0.125,IF(#REF!=\"1/6 pagina\",0.166,IF(#REF!=\"1/4 pagina\",0.25,IF(#REF!=\"1/3 pagina\",0.33,IF(#REF!=\"1/2 pagina\",0.5,IF(#REF!=\"2/3 pagina\",0.66,IF(#REF!=\"1/1 pagina\",1,IF(#REF!=\"2/1 pagina\",2))))))))","v":{"$error":"#REF!"}},0]
[null,null,null,null,null,null,null,null,null,null,null,null,null,null,null,null,null,null,null,null,null,null,null,null,null,null,null,null,null,null,null,null,null,null,{"$f":"IF(#REF!=\"1/8 pagina\",0.125,IF(#REF!=\"1/6 pagina\",0.166,IF(#REF!=\"1/4 pagina\",0.25,IF(#REF!=\"1/3 pagina\",0.33,IF(#REF!=\"1/2 pagina\",0.5,IF(#REF!=\"2/3 pagina\",0.66,IF(#REF!=\"1/1 pagina\",1,IF(#REF!=\"2/1 pagina\",2))))))))","v":{"$error":"#REF!"}},0]
[null,null,null,null,null,null,null,null,null,null,null,null,null,null,null,null,null,null,null,null,null,null,null,null,null,null,null,null,null,null,null,null,null,null,{"$f":"IF(#REF!=\"1/8 pagina\",0.125,IF(#REF!=\"1/6 pagina\",0.166,IF(#REF!=\"1/4 pagina\",0.25,IF(#REF!=\"1/3 pagina\",0.33,IF(#REF!=\"1/2 pagina\",0.5,IF(#REF!=\"2/3 pagina\",0.66,IF(#REF!=\"1/1 pagina\",1,IF(#REF!=\"2/1 pagina\",2))))))))","v":{"$error":"#REF!"}},0]
[null,null,null,null,null,null,null,null,null,null,null,null,null,null,null,null,null,null,null,null,null,null,null,null,null,null,null,null,null,null,null,null,null,null,{"$f":"IF(#REF!=\"1/8 pagina\",0.125,IF(#REF!=\"1/6 pagina\",0.166,IF(#REF!=\"1/4 pagina\",0.25,IF(#REF!=\"1/3 pagina\",0.33,IF(#REF!=\"1/2 pagina\",0.5,IF(#REF!=\"2/3 pagina\",0.66,IF(#REF!=\"1/1 pagina\",1,IF(#REF!=\"2/1 pagina\",2))))))))","v":{"$error":"#REF!"}},0]
[null,null,null,null,null,null,null,null,null,null,null,null,null,null,null,null,null,null,null,null,null,null,null,null,null,null,null,null,null,null,null,null,null,null,{"$f":"IF(#REF!=\"1/8 pagina\",0.125,IF(#REF!=\"1/6 pagina\",0.166,IF(#REF!=\"1/4 pagina\",0.25,IF(#REF!=\"1/3 pagina\",0.33,IF(#REF!=\"1/2 pagina\",0.5,IF(#REF!=\"2/3 pagina\",0.66,IF(#REF!=\"1/1 pagina\",1,IF(#REF!=\"2/1 pagina\",2))))))))","v":{"$error":"#REF!"}},0]
[null,null,null,null,null,null,null,null,null,null,null,null,null,null,null,null,null,null,null,null,null,null,null,null,null,null,null,null,null,null,null,null,null,null,{"$f":"IF(#REF!=\"1/8 pagina\",0.125,IF(#REF!=\"1/6 pagina\",0.166,IF(#REF!=\"1/4 pagina\",0.25,IF(#REF!=\"1/3 pagina\",0.33,IF(#REF!=\"1/2 pagina\",0.5,IF(#REF!=\"2/3 pagina\",0.66,IF(#REF!=\"1/1 pagina\",1,IF(#REF!=\"2/1 pagina\",2))))))))","v":{"$error":"#REF!"}},0]
[null,null,null,null,null,null,null,null,null,null,null,null,null,null,null,null,null,null,null,null,null,null,null,null,null,null,null,null,null,null,null,null,null,null,{"$f":"IF(#REF!=\"1/8 pagina\",0.125,IF(#REF!=\"1/6 pagina\",0.166,IF(#REF!=\"1/4 pagina\",0.25,IF(#REF!=\"1/3 pagina\",0.33,IF(#REF!=\"1/2 pagina\",0.5,IF(#REF!=\"2/3 pagina\",0.66,IF(#REF!=\"1/1 pagina\",1,IF(#REF!=\"2/1 pagina\",2))))))))","v":{"$error":"#REF!"}},0]
[null,null,null,null,null,null,null,null,null,null,null,null,null,null,null,null,null,null,null,null,null,null,null,null,null,null,null,null,null,null,null,null,null,null,{"$f":"IF(#REF!=\"1/8 pagina\",0.125,IF(#REF!=\"1/6 pagina\",0.166,IF(#REF!=\"1/4 pagina\",0.25,IF(#REF!=\"1/3 pagina\",0.33,IF(#REF!=\"1/2 pagina\",0.5,IF(#REF!=\"2/3 pagina\",0.66,IF(#REF!=\"1/1 pagina\",1,IF(#REF!=\"2/1 pagina\",2))))))))","v":{"$error":"#REF!"}},0]
[null,null,null,null,null,null,null,null,null,null,null,null,null,null,null,null,null,null,null,null,null,null,null,null,null,null,null,null,null,null,null,null,null,null,{"$f":"IF(#REF!=\"1/8 pagina\",0.125,IF(#REF!=\"1/6 pagina\",0.166,IF(#REF!=\"1/4 pagina\",0.25,IF(#REF!=\"1/3 pagina\",0.33,IF(#REF!=\"1/2 pagina\",0.5,IF(#REF!=\"2/3 pagina\",0.66,IF(#REF!=\"1/1 pagina\",1,IF(#REF!=\"2/1 pagina\",2))))))))","v":{"$error":"#REF!"}},0]
[null,null,null,null,null,null,null,null,null,null,null,null,null,null,null,null,null,null,null,null,null,null,null,null,null,null,null,null,null,null,null,null,null,null,{"$f":"IF(#REF!=\"1/8 pagina\",0.125,IF(#REF!=\"1/6 pagina\",0.166,IF(#REF!=\"1/4 pagina\",0.25,IF(#REF!=\"1/3 pagina\",0.33,IF(#REF!=\"1/2 pagina\",0.5,IF(#REF!=\"2/3 pagina\",0.66,IF(#REF!=\"1/1 pagina\",1,IF(#REF!=\"2/1 pagina\",2))))))))","v":{"$error":"#REF!"}},0]
[null,null,null,null,null,null,null,null,null,null,null,null,null,null,null,null,null,null,null,null,null,null,null,null,null,null,null,null,null,null,null,null,null,null,{"$f":"IF(#REF!=\"1/8 pagina\",0.125,IF(#REF!=\"1/6 pagina\",0.166,IF(#REF!=\"1/4 pagina\",0.25,IF(#REF!=\"1/3 pagina\",0.33,IF(#REF!=\"1/2 pagina\",0.5,IF(#REF!=\"2/3 pagina\",0.66,IF(#REF!=\"1/1 pagina\",1,IF(#REF!=\"2/1 pagina\",2))))))))","v":{"$error":"#REF!"}},0]
[null,null,null,null,null,null,null,null,null,null,null,null,null,null,null,null,null,null,null,null,null,null,null,null,null,null,null,null,null,null,null,null,null,null,{"$f":"IF(#REF!=\"1/8 pagina\",0.125,IF(#REF!=\"1/6 pagina\",0.166,IF(#REF!=\"1/4 pagina\",0.25,IF(#REF!=\"1/3 pagina\",0.33,IF(#REF!=\"1/2 pagina\",0.5,IF(#REF!=\"2/3 pagina\",0.66,IF(#REF!=\"1/1 pagina\",1,IF(#REF!=\"2/1 pagina\",2))))))))","v":{"$error":"#REF!"}},0]
[null,null,null,null,null,null,null,null,null,null,null,null,null,null,null,null,null,null,null,null,null,null,null,null,null,null,null,null,null,null,null,null,null,null,{"$f":"IF(#REF!=\"1/8 pagina\",0.125,IF(#REF!=\"1/6 pagina\",0.166,IF(#REF!=\"1/4 pagina\",0.25,IF(#REF!=\"1/3 pagina\",0.33,IF(#REF!=\"1/2 pagina\",0.5,IF(#REF!=\"2/3 pagina\",0.66,IF(#REF!=\"1/1 pagina\",1,IF(#REF!=\"2/1 pagina\",2))))))))","v":{"$error":"#REF!"}},0]
[null,null,null,null,null,null,null,null,null,null,null,null,null,null,null,null,null,null,null,null,null,null,null,null,null,null,null,null,null,null,null,null,null,null,{"$f":"IF(#REF!=\"1/8 pagina\",0.125,IF(#REF!=\"1/6 pagina\",0.166,IF(#REF!=\"1/4 pagina\",0.25,IF(#REF!=\"1/3 pagina\",0.33,IF(#REF!=\"1/2 pagina\",0.5,IF(#REF!=\"2/3 pagina\",0.66,IF(#REF!=\"1/1 pagina\",1,IF(#REF!=\"2/1 pagina\",2))))))))","v":{"$error":"#REF!"}},0]
[null,null,null,null,null,null,null,null,null,null,null,null,null,null,null,null,null,null,null,null,null,null,null,null,null,null,null,null,null,null,null,null,null,null,{"$f":"IF(#REF!=\"1/8 pagina\",0.125,IF(#REF!=\"1/6 pagina\",0.166,IF(#REF!=\"1/4 pagina\",0.25,IF(#REF!=\"1/3 pagina\",0.33,IF(#REF!=\"1/2 pagina\",0.5,IF(#REF!=\"2/3 pagina\",0.66,IF(#REF!=\"1/1 pagina\",1,IF(#REF!=\"2/1 pagina\",2))))))))","v":{"$error":"#REF!"}},0]
[null,null,null,null,null,null,null,null,null,null,null,null,null,null,null,null,null,null,null,null,null,null,null,null,null,null,null,null,null,null,null,null,null,null,{"$f":"IF(#REF!=\"1/8 pagina\",0.125,IF(#REF!=\"1/6 pagina\",0.166,IF(#REF!=\"1/4 pagina\",0.25,IF(#REF!=\"1/3 pagina\",0.33,IF(#REF!=\"1/2 pagina\",0.5,IF(#REF!=\"2/3 pagina\",0.66,IF(#REF!=\"1/1 pagina\",1,IF(#REF!=\"2/1 pagina\",2))))))))","v":{"$error":"#REF!"}},0]
[null,null,null,null,null,null,null,null,null,null,null,null,null,null,null,null,null,null,null,null,null,null,null,null,null,null,null,null,null,null,null,null,null,null,{"$f":"IF(#REF!=\"1/8 pagina\",0.125,IF(#REF!=\"1/6 pagina\",0.166,IF(#REF!=\"1/4 pagina\",0.25,IF(#REF!=\"1/3 pagina\",0.33,IF(#REF!=\"1/2 pagina\",0.5,IF(#REF!=\"2/3 pagina\",0.66,IF(#REF!=\"1/1 pagina\",1,IF(#REF!=\"2/1 pagina\",2))))))))","v":{"$error":"#REF!"}},0]
[null,null,null,null,null,null,null,null,null,null,null,null,null,null,null,null,null,null,null,null,null,null,null,null,null,null,null,null,null,null,null,null,null,null,{"$f":"IF(#REF!=\"1/8 pagina\",0.125,IF(#REF!=\"1/6 pagina\",0.166,IF(#REF!=\"1/4 pagina\",0.25,IF(#REF!=\"1/3 pagina\",0.33,IF(#REF!=\"1/2 pagina\",0.5,IF(#REF!=\"2/3 pagina\",0.66,IF(#REF!=\"1/1 pagina\",1,IF(#REF!=\"2/1 pagina\",2))))))))","v":{"$error":"#REF!"}},0]
[null,null,null,null,null,null,null,null,null,null,null,null,null,null,null,null,null,null,null,null,null,null,null,null,null,null,null,null,null,null,null,null,null,null,{"$f":"IF(#REF!=\"1/8 pagina\",0.125,IF(#REF!=\"1/6 pagina\",0.166,IF(#REF!=\"1/4 pagina\",0.25,IF(#REF!=\"1/3 pagina\",0.33,IF(#REF!=\"1/2 pagina\",0.5,IF(#REF!=\"2/3 pagina\",0.66,IF(#REF!=\"1/1 pagina\",1,IF(#REF!=\"2/1 pagina\",2))))))))","v":{"$error":"#REF!"}},{"$f":"IF(#REF!=\"Achterpagina\",1,0)","v":{"$error":"#REF!"}}]
[null,null,null,null,null,null,null,null,null,null,null,null,null,null,null,null,null,null,null,null,null,null,null,null,null,null,null,null,null,null,null,null,null,null,{"$f":"IF(#REF!=\"1/8 pagina\",0.125,IF(#REF!=\"1/6 pagina\",0.166,IF(#REF!=\"1/4 pagina\",0.25,IF(#REF!=\"1/3 pagina\",0.33,IF(#REF!=\"1/2 pagina\",0.5,IF(#REF!=\"2/3 pagina\",0.66,IF(#REF!=\"1/1 pagina\",1,IF(#REF!=\"2/1 pagina\",2))))))))","v":{"$error":"#REF!"}},{"$f":"IF(J85=\"Achterpagina\",1,0)","v":0}]
[null,null,null,null,null,null,null,null,null,null,null,null,null,null,null,null,null,null,null,null,null,null,null,null,null,null,null,null,null,null,null,null,null,null,{"$f":"IF(#REF!=\"1/8 pagina\",0.125,IF(#REF!=\"1/6 pagina\",0.166,IF(#REF!=\"1/4 pagina\",0.25,IF(#REF!=\"1/3 pagina\",0.33,IF(#REF!=\"1/2 pagina\",0.5,IF(#REF!=\"2/3 pagina\",0.66,IF(#REF!=\"1/1 pagina\",1,IF(#REF!=\"2/1 pagina\",2))))))))","v":{"$error":"#REF!"}},0]
[null,null,null,null,null,null,null,null,null,null,null,null,null,null,null,null,null,null,null,null,null,null,null,null,null,null,null,null,null,null,null,null,null,null,{"$f":"IF(#REF!=\"1/8 pagina\",0.125,IF(#REF!=\"1/6 pagina\",0.166,IF(#REF!=\"1/4 pagina\",0.25,IF(#REF!=\"1/3 pagina\",0.33,IF(#REF!=\"1/2 pagina\",0.5,IF(#REF!=\"2/3 pagina\",0.66,IF(#REF!=\"1/1 pagina\",1,IF(#REF!=\"2/1 pagina\",2))))))))","v":{"$error":"#REF!"}},0]
[null,null,null,null,null,null,null,null,null,null,null,null,null,null,null,null,null,null,null,null,null,null,null,null,null,null,null,null,null,null,null,null,null,null,{"$f":"IF(#REF!=\"1/8 pagina\",0.125,IF(#REF!=\"1/6 pagina\",0.166,IF(#REF!=\"1/4 pagina\",0.25,IF(#REF!=\"1/3 pagina\",0.33,IF(#REF!=\"1/2 pagina\",0.5,IF(#REF!=\"2/3 pagina\",0.66,IF(#REF!=\"1/1 pagina\",1,IF(#REF!=\"2/1 pagina\",2))))))))","v":{"$error":"#REF!"}},0]
[null,null,null,null,null,null,null,null,null,null,null,null,null,null,null,null,null,null,null,null,null,null,null,null,null,null,null,null,null,null,null,null,null,null,{"$f":"IF(#REF!=\"1/8 pagina\",0.125,IF(#REF!=\"1/6 pagina\",0.166,IF(#REF!=\"1/4 pagina\",0.25,IF(#REF!=\"1/3 pagina\",0.33,IF(#REF!=\"1/2 pagina\",0.5,IF(#REF!=\"2/3 pagina\",0.66,IF(#REF!=\"1/1 pagina\",1,IF(#REF!=\"2/1 pagina\",2))))))))","v":{"$error":"#REF!"}},0]
[null,null,null,null,null,null,null,null,null,null,null,null,null,null,null,null,null,null,null,null,null,null,null,null,null,null,null,null,null,null,null,null,null,null,{"$f":"IF(#REF!=\"1/8 pagina\",0.125,IF(#REF!=\"1/6 pagina\",0.166,IF(#REF!=\"1/4 pagina\",0.25,IF(#REF!=\"1/3 pagina\",0.33,IF(#REF!=\"1/2 pagina\",0.5,IF(#REF!=\"2/3 pagina\",0.66,IF(#REF!=\"1/1 pagina\",1,IF(#REF!=\"2/1 pagina\",2))))))))","v":{"$error":"#REF!"}},0]
[null,null,null,null,null,null,null,null,null,null,null,null,null,null,null,null,null,null,null,null,null,null,null,null,null,null,null,null,null,null,null,null,null,null,{"$f":"IF(#REF!=\"1/8 pagina\",0.125,IF(#REF!=\"1/6 pagina\",0.166,IF(#REF!=\"1/4 pagina\",0.25,IF(#REF!=\"1/3 pagina\",0.33,IF(#REF!=\"1/2 pagina\",0.5,IF(#REF!=\"2/3 pagina\",0.66,IF(#REF!=\"1/1 pagina\",1,IF(#REF!=\"2/1 pagina\",2))))))))","v":{"$error":"#REF!"}},0]
[null,null,null,null,null,null,null,null,null,null,null,null,null,null,null,null,null,null,null,null,null,null,null,null,null,null,null,null,null,null,null,null,null,null,{"$f":"IF(#REF!=\"1/8 pagina\",0.125,IF(#REF!=\"1/6 pagina\",0.166,IF(#REF!=\"1/4 pagina\",0.25,IF(#REF!=\"1/3 pagina\",0.33,IF(#REF!=\"1/2 pagina\",0.5,IF(#REF!=\"2/3 pagina\",0.66,IF(#REF!=\"1/1 pagina\",1,IF(#REF!=\"2/1 pagina\",2))))))))","v":{"$error":"#REF!"}},0]
[null,null,null,null,null,null,null,null,null,null,null,null,null,null,null,null,null,null,null,null,null,null,null,null,null,null,null,null,null,null,null,null,null,null,{"$f":"IF(#REF!=\"1/8 pagina\",0.125,IF(#REF!=\"1/6 pagina\",0.166,IF(#REF!=\"1/4 pagina\",0.25,IF(#REF!=\"1/3 pagina\",0.33,IF(#REF!=\"1/2 pagina\",0.5,IF(#REF!=\"2/3 pagina\",0.66,IF(#REF!=\"1/1 pagina\",1,IF(#REF!=\"2/1 pagina\",2))))))))","v":{"$error":"#REF!"}},0]
[null,null,null,null,null,null,null,null,null,null,null,null,null,null,null,null,null,null,null,null,null,null,null,null,null,null,null,null,null,null,null,null,null,null,{"$f":"IF(#REF!=\"1/8 pagina\",0.125,IF(#REF!=\"1/6 pagina\",0.166,IF(#REF!=\"1/4 pagina\",0.25,IF(#REF!=\"1/3 pagina\",0.33,IF(#REF!=\"1/2 pagina\",0.5,IF(#REF!=\"2/3 pagina\",0.66,IF(#REF!=\"1/1 pagina\",1,IF(#REF!=\"2/1 pagina\",2))))))))","v":{"$error":"#REF!"}},0]
[null,null,null,null,null,null,null,null,null,null,null,null,null,null,null,null,null,null,null,null,null,null,null,null,null,null,null,null,null,null,null,null,null,null,{"$f":"IF(#REF!=\"1/8 pagina\",0.125,IF(#REF!=\"1/6 pagina\",0.166,IF(#REF!=\"1/4 pagina\",0.25,IF(#REF!=\"1/3 pagina\",0.33,IF(#REF!=\"1/2 pagina\",0.5,IF(#REF!=\"2/3 pagina\",0.66,IF(#REF!=\"1/1 pagina\",1,IF(#REF!=\"2/1 pagina\",2))))))))","v":{"$error":"#REF!"}},0]
[null,null,null,null,null,null,null,null,null,null,null,null,null,null,null,null,null,null,null,null,null,null,null,null,null,null,null,null,null,null,null,null,null,null,{"$f":"IF(#REF!=\"1/8 pagina\",0.125,IF(#REF!=\"1/6 pagina\",0.166,IF(#REF!=\"1/4 pagina\",0.25,IF(#REF!=\"1/3 pagina\",0.33,IF(#REF!=\"1/2 pagina\",0.5,IF(#REF!=\"2/3 pagina\",0.66,IF(#REF!=\"1/1 pagina\",1,IF(#REF!=\"2/1 pagina\",2))))))))","v":{"$error":"#REF!"}},0]
[null,null,null,null,null,null,null,null,null,null,null,null,null,null,null,null,null,null,null,null,null,null,null,null,null,null,null,null,null,null,null,null,null,null,{"$f":"IF(#REF!=\"1/8 pagina\",0.125,IF(#REF!=\"1/6 pagina\",0.166,IF(#REF!=\"1/4 pagina\",0.25,IF(#REF!=\"1/3 pagina\",0.33,IF(#REF!=\"1/2 pagina\",0.5,IF(#REF!=\"2/3 pagina\",0.66,IF(#REF!=\"1/1 pagina\",1,IF(#REF!=\"2/1 pagina\",2))))))))","v":{"$error":"#REF!"}},0]
[null,null,null,null,null,null,null,null,null,null,null,null,null,null,null,null,null,null,null,null,null,null,null,null,null,null,null,null,null,null,null,null,null,null,{"$f":"IF(#REF!=\"1/8 pagina\",0.125,IF(#REF!=\"1/6 pagina\",0.166,IF(#REF!=\"1/4 pagina\",0.25,IF(#REF!=\"1/3 pagina\",0.33,IF(#REF!=\"1/2 pagina\",0.5,IF(#REF!=\"2/3 pagina\",0.66,IF(#REF!=\"1/1 pagina\",1,IF(#REF!=\"2/1 pagina\",2))))))))","v":{"$error":"#REF!"}},0]
[null,null,null,null,null,null,null,null,null,null,null,null,null,null,null,null,null,null,null,null,null,null,null,null,null,null,null,null,null,null,null,null,null,null,{"$f":"IF(#REF!=\"1/8 pagina\",0.125,IF(#REF!=\"1/6 pagina\",0.166,IF(#REF!=\"1/4 pagina\",0.25,IF(#REF!=\"1/3 pagina\",0.33,IF(#REF!=\"1/2 pagina\",0.5,IF(#REF!=\"2/3 pagina\",0.66,IF(#REF!=\"1/1 pagina\",1,IF(#REF!=\"2/1 pagina\",2))))))))","v":{"$error":"#REF!"}},0]
[null,null,null,null,null,null,null,null,null,null,null,null,null,null,null,null,null,null,null,null,null,null,null,null,null,null,null,null,null,null,null,null,null,null,{"$f":"IF(#REF!=\"1/8 pagina\",0.125,IF(#REF!=\"1/6 pagina\",0.166,IF(#REF!=\"1/4 pagina\",0.25,IF(#REF!=\"1/3 pagina\",0.33,IF(#REF!=\"1/2 pagina\",0.5,IF(#REF!=\"2/3 pagina\",0.66,IF(#REF!=\"1/1 pagina\",1,IF(#REF!=\"2/1 pagina\",2))))))))","v":{"$error":"#REF!"}},0]
[null,null,null,null,null,null,null,null,null,null,null,null,null,null,null,null,null,null,null,null,null,null,null,null,null,null,null,null,null,null,null,null,null,null,{"$f":"IF(#REF!=\"1/8 pagina\",0.125,IF(#REF!=\"1/6 pagina\",0.166,IF(#REF!=\"1/4 pagina\",0.25,IF(#REF!=\"1/3 pagina\",0.33,IF(#REF!=\"1/2 pagina\",0.5,IF(#REF!=\"2/3 pagina\",0.66,IF(#REF!=\"1/1 pagina\",1,IF(#REF!=\"2/1 pagina\",2))))))))","v":{"$error":"#REF!"}},0]
[null,null,null,null,null,null,null,null,null,null,null,null,null,null,null,null,null,null,null,null,null,null,null,null,null,null,null,null,null,null,null,null,null,null,{"$f":"IF(#REF!=\"1/8 pagina\",0.125,IF(#REF!=\"1/6 pagina\",0.166,IF(#REF!=\"1/4 pagina\",0.25,IF(#REF!=\"1/3 pagina\",0.33,IF(#REF!=\"1/2 pagina\",0.5,IF(#REF!=\"2/3 pagina\",0.66,IF(#REF!=\"1/1 pagina\",1,IF(#REF!=\"2/1 pagina\",2))))))))","v":{"$error":"#REF!"}},0]
[null,null,null,null,null,null,null,null,null,null,null,null,null,null,null,null,null,null,null,null,null,null,null,null,null,null,null,null,null,null,null,null,null,null,{"$f":"IF(#REF!=\"1/8 pagina\",0.125,IF(#REF!=\"1/6 pagina\",0.166,IF(#REF!=\"1/4 pagina\",0.25,IF(#REF!=\"1/3 pagina\",0.33,IF(#REF!=\"1/2 pagina\",0.5,IF(#REF!=\"2/3 pagina\",0.66,IF(#REF!=\"1/1 pagina\",1,IF(#REF!=\"2/1 pagina\",2))))))))","v":{"$error":"#REF!"}},0]
[null,null,null,null,null,null,null,null,null,null,null,null,null,null,null,null,null,null,null,null,null,null,null,null,null,null,null,null,null,null,null,null,null,null,{"$f":"IF(#REF!=\"1/8 pagina\",0.125,IF(#REF!=\"1/6 pagina\",0.166,IF(#REF!=\"1/4 pagina\",0.25,IF(#REF!=\"1/3 pagina\",0.33,IF(#REF!=\"1/2 pagina\",0.5,IF(#REF!=\"2/3 pagina\",0.66,IF(#REF!=\"1/1 pagina\",1,IF(#REF!=\"2/1 pagina\",2))))))))","v":{"$error":"#REF!"}},0]
[null,null,null,null,null,null,null,null,null,null,null,null,null,null,null,null,null,null,null,null,null,null,null,null,null,null,null,null,null,null,null,null,null,null,{"$f":"IF(#REF!=\"1/8 pagina\",0.125,IF(#REF!=\"1/6 pagina\",0.166,IF(#REF!=\"1/4 pagina\",0.25,IF(#REF!=\"1/3 pagina\",0.33,IF(#REF!=\"1/2 pagina\",0.5,IF(#REF!=\"2/3 pagina\",0.66,IF(#REF!=\"1/1 pagina\",1,IF(#REF!=\"2/1 pagina\",2))))))))","v":{"$error":"#REF!"}},0]
[null,null,null,null,null,null,null,null,null,null,null,null,null,null,null,null,null,null,null,null,null,null,null,null,null,null,null,null,null,null,null,null,null,null,{"$f":"IF(#REF!=\"1/8 pagina\",0.125,IF(#REF!=\"1/6 pagina\",0.166,IF(#REF!=\"1/4 pagina\",0.25,IF(#REF!=\"1/3 pagina\",0.33,IF(#REF!=\"1/2 pagina\",0.5,IF(#REF!=\"2/3 pagina\",0.66,IF(#REF!=\"1/1 pagina\",1,IF(#REF!=\"2/1 pagina\",2))))))))","v":{"$error":"#REF!"}},0]
[null,null,null,null,null,null,null,null,null,null,null,null,null,null,null,null,null,null,null,null,null,null,null,null,null,null,null,null,null,null,null,null,null,null,{"$f":"IF(#REF!=\"1/8 pagina\",0.125,IF(#REF!=\"1/6 pagina\",0.166,IF(#REF!=\"1/4 pagina\",0.25,IF(#REF!=\"1/3 pagina\",0.33,IF(#REF!=\"1/2 pagina\",0.5,IF(#REF!=\"2/3 pagina\",0.66,IF(#REF!=\"1/1 pagina\",1,IF(#REF!=\"2/1 pagina\",2))))))))","v":{"$error":"#REF!"}},0]
[null,null,null,null,null,null,null,null,null,null,null,null,null,null,null,null,null,null,null,null,null,null,null,null,null,null,null,null,null,null,null,null,null,null,{"$f":"IF(#REF!=\"1/8 pagina\",0.125,IF(#REF!=\"1/6 pagina\",0.166,IF(#REF!=\"1/4 pagina\",0.25,IF(#REF!=\"1/3 pagina\",0.33,IF(#REF!=\"1/2 pagina\",0.5,IF(#REF!=\"2/3 pagina\",0.66,IF(#REF!=\"1/1 pagina\",1,IF(#REF!=\"2/1 pagina\",2))))))))","v":{"$error":"#REF!"}},0]
[null,null,null,null,null,null,null,null,null,null,null,null,null,null,null,null,null,null,null,null,null,null,null,null,null,null,null,null,null,null,null,null,null,null,{"$f":"IF(#REF!=\"1/8 pagina\",0.125,IF(#REF!=\"1/6 pagina\",0.166,IF(#REF!=\"1/4 pagina\",0.25,IF(#REF!=\"1/3 pagina\",0.33,IF(#REF!=\"1/2 pagina\",0.5,IF(#REF!=\"2/3 pagina\",0.66,IF(#REF!=\"1/1 pagina\",1,IF(#REF!=\"2/1 pagina\",2))))))))","v":{"$error":"#REF!"}},0]
[null,null,null,null,null,null,null,null,null,null,null,null,null,null,null,null,null,null,null,null,null,null,null,null,null,null,null,null,null,null,null,null,null,null,{"$f":"IF(#REF!=\"1/8 pagina\",0.125,IF(#REF!=\"1/6 pagina\",0.166,IF(#REF!=\"1/4 pagina\",0.25,IF(#REF!=\"1/3 pagina\",0.33,IF(#REF!=\"1/2 pagina\",0.5,IF(#REF!=\"2/3 pagina\",0.66,IF(#REF!=\"1/1 pagina\",1,IF(#REF!=\"2/1 pagina\",2))))))))","v":{"$error":"#REF!"}},0]
[null,null,null,null,null,null,null,null,null,null,null,null,null,null,null,null,null,null,null,null,null,null,null,null,null,null,null,null,null,null,null,null,null,null,{"$f":"IF(#REF!=\"1/8 pagina\",0.125,IF(#REF!=\"1/6 pagina\",0.166,IF(#REF!=\"1/4 pagina\",0.25,IF(#REF!=\"1/3 pagina\",0.33,IF(#REF!=\"1/2 pagina\",0.5,IF(#REF!=\"2/3 pagina\",0.66,IF(#REF!=\"1/1 pagina\",1,IF(#REF!=\"2/1 pagina\",2))))))))","v":{"$error":"#REF!"}},0]
[null,null,null,null,null,null,null,null,null,null,null,null,null,null,null,null,null,null,null,null,null,null,null,null,null,null,null,null,null,null,null,null,null,null,{"$f":"IF(#REF!=\"1/8 pagina\",0.125,IF(#REF!=\"1/6 pagina\",0.166,IF(#REF!=\"1/4 pagina\",0.25,IF(#REF!=\"1/3 pagina\",0.33,IF(#REF!=\"1/2 pagina\",0.5,IF(#REF!=\"2/3 pagina\",0.66,IF(#REF!=\"1/1 pagina\",1,IF(#REF!=\"2/1 pagina\",2))))))))","v":{"$error":"#REF!"}},0]
[null,null,null,null,null,null,null,null,null,null,null,null,null,null,null,null,null,null,null,null,null,null,null,null,null,null,null,null,null,null,null,null,null,null,{"$f":"IF(#REF!=\"1/8 pagina\",0.125,IF(#REF!=\"1/6 pagina\",0.166,IF(#REF!=\"1/4 pagina\",0.25,IF(#REF!=\"1/3 pagina\",0.33,IF(#REF!=\"1/2 pagina\",0.5,IF(#REF!=\"2/3 pagina\",0.66,IF(#REF!=\"1/1 pagina\",1,IF(#REF!=\"2/1 pagina\",2))))))))","v":{"$error":"#REF!"}},0]
[null,null,null,null,null,null,null,null,null,null,null,null,null,null,null,null,null,null,null,null,null,null,null,null,null,null,null,null,null,null,null,null,null,null,{"$f":"IF(#REF!=\"1/8 pagina\",0.125,IF(#REF!=\"1/6 pagina\",0.166,IF(#REF!=\"1/4 pagina\",0.25,IF(#REF!=\"1/3 pagina\",0.33,IF(#REF!=\"1/2 pagina\",0.5,IF(#REF!=\"2/3 pagina\",0.66,IF(#REF!=\"1/1 pagina\",1,IF(#REF!=\"2/1 pagina\",2))))))))","v":{"$error":"#REF!"}},0]
[null,null,null,null,null,null,null,null,null,null,null,null,null,null,null,null,null,null,null,null,null,null,null,null,null,null,null,null,null,null,null,null,null,null,{"$f":"IF(#REF!=\"1/8 pagina\",0.125,IF(#REF!=\"1/6 pagina\",0.166,IF(#REF!=\"1/4 pagina\",0.25,IF(#REF!=\"1/3 pagina\",0.33,IF(#REF!=\"1/2 pagina\",0.5,IF(#REF!=\"2/3 pagina\",0.66,IF(#REF!=\"1/1 pagina\",1,IF(#REF!=\"2/1 pagina\",2))))))))","v":{"$error":"#REF!"}},0]
[null,null,null,null,null,null,null,null,null,null,null,null,null,null,null,null,null,null,null,null,null,null,null,null,null,null,null,null,null,null,null,null,null,null,{"$f":"IF(#REF!=\"1/8 pagina\",0.125,IF(#REF!=\"1/6 pagina\",0.166,IF(#REF!=\"1/4 pagina\",0.25,IF(#REF!=\"1/3 pagina\",0.33,IF(#REF!=\"1/2 pagina\",0.5,IF(#REF!=\"2/3 pagina\",0.66,IF(#REF!=\"1/1 pagina\",1,IF(#REF!=\"2/1 pagina\",2))))))))","v":{"$error":"#REF!"}},0]
[null,null,null,null,null,null,null,null,null,null,null,null,null,null,null,null,null,null,null,null,null,null,null,null,null,null,null,null,null,null,null,null,null,null,{"$f":"IF(#REF!=\"1/8 pagina\",0.125,IF(#REF!=\"1/6 pagina\",0.166,IF(#REF!=\"1/4 pagina\",0.25,IF(#REF!=\"1/3 pagina\",0.33,IF(#REF!=\"1/2 pagina\",0.5,IF(#REF!=\"2/3 pagina\",0.66,IF(#REF!=\"1/1 pagina\",1,IF(#REF!=\"2/1 pagina\",2))))))))","v":{"$error":"#REF!"}},{"$f":"IF(J117=\"Achterpagina\",1,0)","v":0}]
[null,null,null,null,null,null,null,null,null,null,null,null,null,null,null,null,null,null,null,null,null,null,null,null,null,null,null,null,null,null,null,null,null,null,{"$f":"IF(#REF!=\"1/8 pagina\",0.125,IF(#REF!=\"1/6 pagina\",0.166,IF(#REF!=\"1/4 pagina\",0.25,IF(#REF!=\"1/3 pagina\",0.33,IF(#REF!=\"1/2 pagina\",0.5,IF(#REF!=\"2/3 pagina\",0.66,IF(#REF!=\"1/1 pagina\",1,IF(#REF!=\"2/1 pagina\",2))))))))","v":{"$error":"#REF!"}},0]
[null,null,null,null,null,null,null,null,null,null,null,null,null,null,null,null,null,null,null,null,null,null,null,null,null,null,null,null,null,null,null,null,null,null,{"$f":"IF(#REF!=\"1/8 pagina\",0.125,IF(#REF!=\"1/6 pagina\",0.166,IF(#REF!=\"1/4 pagina\",0.25,IF(#REF!=\"1/3 pagina\",0.33,IF(#REF!=\"1/2 pagina\",0.5,IF(#REF!=\"2/3 pagina\",0.66,IF(#REF!=\"1/1 pagina\",1,IF(#REF!=\"2/1 pagina\",2))))))))","v":{"$error":"#REF!"}},0]
[null,null,null,null,null,null,null,null,null,null,null,null,null,null,null,null,null,null,null,null,null,null,null,null,null,null,null,null,null,null,null,null,null,null,{"$f":"IF(#REF!=\"1/8 pagina\",0.125,IF(#REF!=\"1/6 pagina\",0.166,IF(#REF!=\"1/4 pagina\",0.25,IF(#REF!=\"1/3 pagina\",0.33,IF(#REF!=\"1/2 pagina\",0.5,IF(#REF!=\"2/3 pagina\",0.66,IF(#REF!=\"1/1 pagina\",1,IF(#REF!=\"2/1 pagina\",2))))))))","v":{"$error":"#REF!"}},0]
[null,null,null,null,null,null,null,null,null,null,null,null,null,null,null,null,null,null,null,null,null,null,null,null,null,null,null,null,null,null,null,null,null,null,{"$f":"IF(#REF!=\"1/8 pagina\",0.125,IF(#REF!=\"1/6 pagina\",0.166,IF(#REF!=\"1/4 pagina\",0.25,IF(#REF!=\"1/3 pagina\",0.33,IF(#REF!=\"1/2 pagina\",0.5,IF(#REF!=\"2/3 pagina\",0.66,IF(#REF!=\"1/1 pagina\",1,IF(#REF!=\"2/1 pagina\",2))))))))","v":{"$error":"#REF!"}},0]
[null,null,null,null,null,null,null,null,null,null,null,null,null,null,null,null,null,null,null,null,null,null,null,null,null,null,null,null,null,null,null,null,null,null,{"$f":"IF(#REF!=\"1/8 pagina\",0.125,IF(#REF!=\"1/6 pagina\",0.166,IF(#REF!=\"1/4 pagina\",0.25,IF(#REF!=\"1/3 pagina\",0.33,IF(#REF!=\"1/2 pagina\",0.5,IF(#REF!=\"2/3 pagina\",0.66,IF(#REF!=\"1/1 pagina\",1,IF(#REF!=\"2/1 pagina\",2))))))))","v":{"$error":"#REF!"}},0]
[null,null,null,null,null,null,null,null,null,null,null,null,null,null,null,null,null,null,null,null,null,null,null,null,null,null,null,null,null,null,null,null,null,null,{"$f":"IF(#REF!=\"1/8 pagina\",0.125,IF(#REF!=\"1/6 pagina\",0.166,IF(#REF!=\"1/4 pagina\",0.25,IF(#REF!=\"1/3 pagina\",0.33,IF(#REF!=\"1/2 pagina\",0.5,IF(#REF!=\"2/3 pagina\",0.66,IF(#REF!=\"1/1 pagina\",1,IF(#REF!=\"2/1 pagina\",2))))))))","v":{"$error":"#REF!"}},0]
[null,null,null,null,null,null,null,null,null,null,null,null,null,null,null,null,null,null,null,null,null,null,null,null,null,null,null,null,null,null,null,null,null,null,{"$f":"IF(#REF!=\"1/8 pagina\",0.125,IF(#REF!=\"1/6 pagina\",0.166,IF(#REF!=\"1/4 pagina\",0.25,IF(#REF!=\"1/3 pagina\",0.33,IF(#REF!=\"1/2 pagina\",0.5,IF(#REF!=\"2/3 pagina\",0.66,IF(#REF!=\"1/1 pagina\",1,IF(#REF!=\"2/1 pagina\",2))))))))","v":{"$error":"#REF!"}},0]
[null,null,null,null,null,null,null,null,null,null,null,null,null,null,null,null,null,null,null,null,null,null,null,null,null,null,null,null,null,null,null,null,null,null,{"$f":"IF(#REF!=\"1/8 pagina\",0.125,IF(#REF!=\"1/6 pagina\",0.166,IF(#REF!=\"1/4 pagina\",0.25,IF(#REF!=\"1/3 pagina\",0.33,IF(#REF!=\"1/2 pagina\",0.5,IF(#REF!=\"2/3 pagina\",0.66,IF(#REF!=\"1/1 pagina\",1,IF(#REF!=\"2/1 pagina\",2))))))))","v":{"$error":"#REF!"}},0]
[null,null,null,null,null,null,null,null,null,null,null,null,null,null,null,null,null,null,null,null,null,null,null,null,null,null,null,null,null,null,null,null,null,null,{"$f":"IF(#REF!=\"1/8 pagina\",0.125,IF(#REF!=\"1/6 pagina\",0.166,IF(#REF!=\"1/4 pagina\",0.25,IF(#REF!=\"1/3 pagina\",0.33,IF(#REF!=\"1/2 pagina\",0.5,IF(#REF!=\"2/3 pagina\",0.66,IF(#REF!=\"1/1 pagina\",1,IF(#REF!=\"2/1 pagina\",2))))))))","v":{"$error":"#REF!"}},0]
[null,null,null,null,null,null,null,null,null,null,null,null,null,null,null,null,null,null,null,null,null,null,null,null,null,null,null,null,null,null,null,null,null,null,{"$f":"IF(#REF!=\"1/8 pagina\",0.125,IF(#REF!=\"1/6 pagina\",0.166,IF(#REF!=\"1/4 pagina\",0.25,IF(#REF!=\"1/3 pagina\",0.33,IF(#REF!=\"1/2 pagina\",0.5,IF(#REF!=\"2/3 pagina\",0.66,IF(#REF!=\"1/1 pagina\",1,IF(#REF!=\"2/1 pagina\",2))))))))","v":{"$error":"#REF!"}},0]
[null,null,null,null,null,null,null,null,null,null,null,null,null,null,null,null,null,null,null,null,null,null,null,null,null,null,null,null,null,null,null,null,null,null,{"$f":"IF(#REF!=\"1/8 pagina\",0.125,IF(#REF!=\"1/6 pagina\",0.166,IF(#REF!=\"1/4 pagina\",0.25,IF(#REF!=\"1/3 pagina\",0.33,IF(#REF!=\"1/2 pagina\",0.5,IF(#REF!=\"2/3 pagina\",0.66,IF(#REF!=\"1/1 pagina\",1,IF(#REF!=\"2/1 pagina\",2))))))))","v":{"$error":"#REF!"}},0]
[null,null,null,null,null,null,null,null,null,null,null,null,null,null,null,null,null,null,null,null,null,null,null,null,null,null,null,null,null,null,null,null,null,null,{"$f":"IF(#REF!=\"1/8 pagina\",0.125,IF(#REF!=\"1/6 pagina\",0.166,IF(#REF!=\"1/4 pagina\",0.25,IF(#REF!=\"1/3 pagina\",0.33,IF(#REF!=\"1/2 pagina\",0.5,IF(#REF!=\"2/3 pagina\",0.66,IF(#REF!=\"1/1 pagina\",1,IF(#REF!=\"2/1 pagina\",2))))))))","v":{"$error":"#REF!"}},0]
[null,null,null,null,null,null,null,null,null,null,null,null,null,null,null,null,null,null,null,null,null,null,null,null,null,null,null,null,null,null,null,null,null,null,{"$f":"IF(#REF!=\"1/8 pagina\",0.125,IF(#REF!=\"1/6 pagina\",0.166,IF(#REF!=\"1/4 pagina\",0.25,IF(#REF!=\"1/3 pagina\",0.33,IF(#REF!=\"1/2 pagina\",0.5,IF(#REF!=\"2/3 pagina\",0.66,IF(#REF!=\"1/1 pagina\",1,IF(#REF!=\"2/1 pagina\",2))))))))","v":{"$error":"#REF!"}},0]
[null,null,null,null,null,null,null,null,null,null,null,null,null,null,null,null,null,null,null,null,null,null,null,null,null,null,null,null,null,null,null,null,null,null,{"$f":"IF(#REF!=\"1/8 pagina\",0.125,IF(#REF!=\"1/6 pagina\",0.166,IF(#REF!=\"1/4 pagina\",0.25,IF(#REF!=\"1/3 pagina\",0.33,IF(#REF!=\"1/2 pagina\",0.5,IF(#REF!=\"2/3 pagina\",0.66,IF(#REF!=\"1/1 pagina\",1,IF(#REF!=\"2/1 pagina\",2))))))))","v":{"$error":"#REF!"}},0]
[null,null,null,null,null,null,null,null,null,null,null,null,null,null,null,null,null,null,null,null,null,null,null,null,null,null,null,null,null,null,null,null,null,null,{"$f":"IF(#REF!=\"1/8 pagina\",0.125,IF(#REF!=\"1/6 pagina\",0.166,IF(#REF!=\"1/4 pagina\",0.25,IF(#REF!=\"1/3 pagina\",0.33,IF(#REF!=\"1/2 pagina\",0.5,IF(#REF!=\"2/3 pagina\",0.66,IF(#REF!=\"1/1 pagina\",1,IF(#REF!=\"2/1 pagina\",2))))))))","v":{"$error":"#REF!"}},0]
[null,null,null,null,null,null,null,null,null,null,null,null,null,null,null,null,null,null,null,null,null,null,null,null,null,null,null,null,null,null,null,null,null,null,{"$f":"IF(#REF!=\"1/8 pagina\",0.125,IF(#REF!=\"1/6 pagina\",0.166,IF(#REF!=\"1/4 pagina\",0.25,IF(#REF!=\"1/3 pagina\",0.33,IF(#REF!=\"1/2 pagina\",0.5,IF(#REF!=\"2/3 pagina\",0.66,IF(#REF!=\"1/1 pagina\",1,IF(#REF!=\"2/1 pagina\",2))))))))","v":{"$error":"#REF!"}},0]
[null,null,null,null,null,null,null,null,null,null,null,null,null,null,null,null,null,null,null,null,null,null,null,null,null,null,null,null,null,null,null,null,null,null,{"$f":"IF(#REF!=\"1/8 pagina\",0.125,IF(#REF!=\"1/6 pagina\",0.166,IF(#REF!=\"1/4 pagina\",0.25,IF(#REF!=\"1/3 pagina\",0.33,IF(#REF!=\"1/2 pagina\",0.5,IF(#REF!=\"2/3 pagina\",0.66,IF(#REF!=\"1/1 pagina\",1,IF(#REF!=\"2/1 pagina\",2))))))))","v":{"$error":"#REF!"}},0]
[null,null,null,null,null,null,null,null,null,null,null,null,null,null,null,null,null,null,null,null,null,null,null,null,null,null,null,null,null,null,null,null,null,null,{"$f":"IF(#REF!=\"1/8 pagina\",0.125,IF(#REF!=\"1/6 pagina\",0.166,IF(#REF!=\"1/4 pagina\",0.25,IF(#REF!=\"1/3 pagina\",0.33,IF(#REF!=\"1/2 pagina\",0.5,IF(#REF!=\"2/3 pagina\",0.66,IF(#REF!=\"1/1 pagina\",1,IF(#REF!=\"2/1 pagina\",2))))))))","v":{"$error":"#REF!"}},0]
[null,null,null,null,null,null,null,null,null,null,null,null,null,null,null,null,null,null,null,null,null,null,null,null,null,null,null,null,null,null,null,null,null,null,{"$f":"IF(#REF!=\"1/8 pagina\",0.125,IF(#REF!=\"1/6 pagina\",0.166,IF(#REF!=\"1/4 pagina\",0.25,IF(#REF!=\"1/3 pagina\",0.33,IF(#REF!=\"1/2 pagina\",0.5,IF(#REF!=\"2/3 pagina\",0.66,IF(#REF!=\"1/1 pagina\",1,IF(#REF!=\"2/1 pagina\",2))))))))","v":{"$error":"#REF!"}},0]
[null,null,null,null,null,null,null,null,null,null,null,null,null,null,null,null,null,null,null,null,null,null,null,null,null,null,null,null,null,null,null,null,null,null,{"$f":"IF(#REF!=\"1/8 pagina\",0.125,IF(#REF!=\"1/6 pagina\",0.166,IF(#REF!=\"1/4 pagina\",0.25,IF(#REF!=\"1/3 pagina\",0.33,IF(#REF!=\"1/2 pagina\",0.5,IF(#REF!=\"2/3 pagina\",0.66,IF(#REF!=\"1/1 pagina\",1,IF(#REF!=\"2/1 pagina\",2))))))))","v":{"$error":"#REF!"}},0]
[null,null,null,null,null,null,null,null,null,null,null,null,null,null,null,null,null,null,null,null,null,null,null,null,null,null,null,null,null,null,null,null,null,null,{"$f":"IF(#REF!=\"1/8 pagina\",0.125,IF(#REF!=\"1/6 pagina\",0.166,IF(#REF!=\"1/4 pagina\",0.25,IF(#REF!=\"1/3 pagina\",0.33,IF(#REF!=\"1/2 pagina\",0.5,IF(#REF!=\"2/3 pagina\",0.66,IF(#REF!=\"1/1 pagina\",1,IF(#REF!=\"2/1 pagina\",2))))))))","v":{"$error":"#REF!"}},0]
[null,null,null,null,null,null,null,null,null,null,null,null,null,null,null,null,null,null,null,null,null,null,null,null,null,null,null,null,null,null,null,null,null,null,{"$f":"IF(#REF!=\"1/8 pagina\",0.125,IF(#REF!=\"1/6 pagina\",0.166,IF(#REF!=\"1/4 pagina\",0.25,IF(#REF!=\"1/3 pagina\",0.33,IF(#REF!=\"1/2 pagina\",0.5,IF(#REF!=\"2/3 pagina\",0.66,IF(#REF!=\"1/1 pagina\",1,IF(#REF!=\"2/1 pagina\",2))))))))","v":{"$error":"#REF!"}},0]
[null,null,null,null,null,null,null,null,null,null,null,null,null,null,null,null,null,null,null,null,null,null,null,null,null,null,null,null,null,null,null,null,null,null,{"$f":"IF(#REF!=\"1/8 pagina\",0.125,IF(#REF!=\"1/6 pagina\",0.166,IF(#REF!=\"1/4 pagina\",0.25,IF(#REF!=\"1/3 pagina\",0.33,IF(#REF!=\"1/2 pagina\",0.5,IF(#REF!=\"2/3 pagina\",0.66,IF(#REF!=\"1/1 pagina\",1,IF(#REF!=\"2/1 pagina\",2))))))))","v":{"$error":"#REF!"}},0]
[null,null,null,null,null,null,null,null,null,null,null,null,null,null,null,null,null,null,null,null,null,null,null,null,null,null,null,null,null,null,null,null,null,null,{"$f":"IF(#REF!=\"1/8 pagina\",0.125,IF(#REF!=\"1/6 pagina\",0.166,IF(#REF!=\"1/4 pagina\",0.25,IF(#REF!=\"1/3 pagina\",0.33,IF(#REF!=\"1/2 pagina\",0.5,IF(#REF!=\"2/3 pagina\",0.66,IF(#REF!=\"1/1 pagina\",1,IF(#REF!=\"2/1 pagina\",2))))))))","v":{"$error":"#REF!"}},0]
[null,null,null,null,null,null,null,null,null,null,null,null,null,null,null,null,null,null,null,null,null,null,null,null,null,null,null,null,null,null,null,null,null,null,{"$f":"IF(#REF!=\"1/8 pagina\",0.125,IF(#REF!=\"1/6 pagina\",0.166,IF(#REF!=\"1/4 pagina\",0.25,IF(#REF!=\"1/3 pagina\",0.33,IF(#REF!=\"1/2 pagina\",0.5,IF(#REF!=\"2/3 pagina\",0.66,IF(#REF!=\"1/1 pagina\",1,IF(#REF!=\"2/1 pagina\",2))))))))","v":{"$error":"#REF!"}},0]
[null,null,null,null,null,null,null,null,null,null,null,null,null,null,null,null,null,null,null,null,null,null,null,null,null,null,null,null,null,null,null,null,null,null,{"$f":"IF(#REF!=\"1/8 pagina\",0.125,IF(#REF!=\"1/6 pagina\",0.166,IF(#REF!=\"1/4 pagina\",0.25,IF(#REF!=\"1/3 pagina\",0.33,IF(#REF!=\"1/2 pagina\",0.5,IF(#REF!=\"2/3 pagina\",0.66,IF(#REF!=\"1/1 pagina\",1,IF(#REF!=\"2/1 pagina\",2))))))))","v":{"$error":"#REF!"}},0]
[null,null,null,null,null,null,null,null,null,null,null,null,null,null,null,null,null,null,null,null,null,null,null,null,null,null,null,null,null,null,null,null,null,null,{"$f":"IF(#REF!=\"1/8 pagina\",0.125,IF(#REF!=\"1/6 pagina\",0.166,IF(#REF!=\"1/4 pagina\",0.25,IF(#REF!=\"1/3 pagina\",0.33,IF(#REF!=\"1/2 pagina\",0.5,IF(#REF!=\"2/3 pagina\",0.66,IF(#REF!=\"1/1 pagina\",1,IF(#REF!=\"2/1 pagina\",2))))))))","v":{"$error":"#REF!"}},0]
[null,null,null,null,null,null,null,null,null,null,null,null,null,null,null,null,null,null,null,null,null,null,null,null,null,null,null,null,null,null,null,null,null,null,{"$f":"IF(#REF!=\"1/8 pagina\",0.125,IF(#REF!=\"1/6 pagina\",0.166,IF(#REF!=\"1/4 pagina\",0.25,IF(#REF!=\"1/3 pagina\",0.33,IF(#REF!=\"1/2 pagina\",0.5,IF(#REF!=\"2/3 pagina\",0.66,IF(#REF!=\"1/1 pagina\",1,IF(#REF!=\"2/1 pagina\",2))))))))","v":{"$error":"#REF!"}},0]
[null,null,null,null,null,null,null,null,null,null,null,null,null,null,null,null,null,null,null,null,null,null,null,null,null,null,null,null,null,null,null,null,null,null,{"$f":"IF(#REF!=\"1/8 pagina\",0.125,IF(#REF!=\"1/6 pagina\",0.166,IF(#REF!=\"1/4 pagina\",0.25,IF(#REF!=\"1/3 pagina\",0.33,IF(#REF!=\"1/2 pagina\",0.5,IF(#REF!=\"2/3 pagina\",0.66,IF(#REF!=\"1/1 pagina\",1,IF(#REF!=\"2/1 pagina\",2))))))))","v":{"$error":"#REF!"}},{"$f":"IF(J146=\"Achterpagina\",1,0)","v":0}]
[null,null,null,null,null,null,null,null,null,null,null,null,null,null,null,null,null,null,null,null,null,null,null,null,null,null,null,null,null,null,null,null,null,null,{"$f":"IF(#REF!=\"1/8 pagina\",0.125,IF(#REF!=\"1/6 pagina\",0.166,IF(#REF!=\"1/4 pagina\",0.25,IF(#REF!=\"1/3 pagina\",0.33,IF(#REF!=\"1/2 pagina\",0.5,IF(#REF!=\"2/3 pagina\",0.66,IF(#REF!=\"1/1 pagina\",1,IF(#REF!=\"2/1 pagina\",2))))))))","v":{"$error":"#REF!"}},0]
[null,null,null,null,null,null,null,null,null,null,null,null,null,null,null,null,null,null,null,null,null,null,null,null,null,null,null,null,null,null,null,null,null,null,{"$f":"IF(#REF!=\"1/8 pagina\",0.125,IF(#REF!=\"1/6 pagina\",0.166,IF(#REF!=\"1/4 pagina\",0.25,IF(#REF!=\"1/3 pagina\",0.33,IF(#REF!=\"1/2 pagina\",0.5,IF(#REF!=\"2/3 pagina\",0.66,IF(#REF!=\"1/1 pagina\",1,IF(#REF!=\"2/1 pagina\",2))))))))","v":{"$error":"#REF!"}},0]
[null,null,null,null,null,null,null,null,null,null,null,null,null,null,null,null,null,null,null,null,null,null,null,null,null,null,null,null,null,null,null,null,null,null,{"$f":"IF(#REF!=\"1/8 pagina\",0.125,IF(#REF!=\"1/6 pagina\",0.166,IF(#REF!=\"1/4 pagina\",0.25,IF(#REF!=\"1/3 pagina\",0.33,IF(#REF!=\"1/2 pagina\",0.5,IF(#REF!=\"2/3 pagina\",0.66,IF(#REF!=\"1/1 pagina\",1,IF(#REF!=\"2/1 pagina\",2))))))))","v":{"$error":"#REF!"}},0]
[null,null,null,null,null,null,null,null,null,null,null,null,null,null,null,null,null,null,null,null,null,null,null,null,null,null,null,null,null,null,null,null,null,null,{"$f":"IF(#REF!=\"1/8 pagina\",0.125,IF(#REF!=\"1/6 pagina\",0.166,IF(#REF!=\"1/4 pagina\",0.25,IF(#REF!=\"1/3 pagina\",0.33,IF(#REF!=\"1/2 pagina\",0.5,IF(#REF!=\"2/3 pagina\",0.66,IF(#REF!=\"1/1 pagina\",1,IF(#REF!=\"2/1 pagina\",2))))))))","v":{"$error":"#REF!"}},0]
[null,null,null,null,null,null,null,null,null,null,null,null,null,null,null,null,null,null,null,null,null,null,null,null,null,null,null,null,null,null,null,null,null,null,{"$f":"IF(#REF!=\"1/8 pagina\",0.125,IF(#REF!=\"1/6 pagina\",0.166,IF(#REF!=\"1/4 pagina\",0.25,IF(#REF!=\"1/3 pagina\",0.33,IF(#REF!=\"1/2 pagina\",0.5,IF(#REF!=\"2/3 pagina\",0.66,IF(#REF!=\"1/1 pagina\",1,IF(#REF!=\"2/1 pagina\",2))))))))","v":{"$error":"#REF!"}},0]
[null,null,null,null,null,null,null,null,null,null,null,null,null,null,null,null,null,null,null,null,null,null,null,null,null,null,null,null,null,null,null,null,null,null,{"$f":"IF(#REF!=\"1/8 pagina\",0.125,IF(#REF!=\"1/6 pagina\",0.166,IF(#REF!=\"1/4 pagina\",0.25,IF(#REF!=\"1/3 pagina\",0.33,IF(#REF!=\"1/2 pagina\",0.5,IF(#REF!=\"2/3 pagina\",0.66,IF(#REF!=\"1/1 pagina\",1,IF(#REF!=\"2/1 pagina\",2))))))))","v":{"$error":"#REF!"}},0]
[null,null,null,null,null,null,null,null,null,null,null,null,null,null,null,null,null,null,null,null,null,null,null,null,null,null,null,null,null,null,null,null,null,null,{"$f":"IF(#REF!=\"1/8 pagina\",0.125,IF(#REF!=\"1/6 pagina\",0.166,IF(#REF!=\"1/4 pagina\",0.25,IF(#REF!=\"1/3 pagina\",0.33,IF(#REF!=\"1/2 pagina\",0.5,IF(#REF!=\"2/3 pagina\",0.66,IF(#REF!=\"1/1 pagina\",1,IF(#REF!=\"2/1 pagina\",2))))))))","v":{"$error":"#REF!"}},0]
[null,null,null,null,null,null,null,null,null,null,null,null,null,null,null,null,null,null,null,null,null,null,null,null,null,null,null,null,null,null,null,null,null,null,{"$f":"IF(#REF!=\"1/8 pagina\",0.125,IF(#REF!=\"1/6 pagina\",0.166,IF(#REF!=\"1/4 pagina\",0.25,IF(#REF!=\"1/3 pagina\",0.33,IF(#REF!=\"1/2 pagina\",0.5,IF(#REF!=\"2/3 pagina\",0.66,IF(#REF!=\"1/1 pagina\",1,IF(#REF!=\"2/1 pagina\",2))))))))","v":{"$error":"#REF!"}},0]
[null,null,null,null,null,null,null,null,null,null,null,null,null,null,null,null,null,null,null,null,null,null,null,null,null,null,null,null,null,null,null,null,null,null,{"$f":"IF(#REF!=\"1/8 pagina\",0.125,IF(#REF!=\"1/6 pagina\",0.166,IF(#REF!=\"1/4 pagina\",0.25,IF(#REF!=\"1/3 pagina\",0.33,IF(#REF!=\"1/2 pagina\",0.5,IF(#REF!=\"2/3 pagina\",0.66,IF(#REF!=\"1/1 pagina\",1,IF(#REF!=\"2/1 pagina\",2))))))))","v":{"$error":"#REF!"}},0]
[null,null,null,null,null,null,null,null,null,null,null,null,null,null,null,null,null,null,null,null,null,null,null,null,null,null,null,null,null,null,null,null,null,null,{"$f":"IF(#REF!=\"1/8 pagina\",0.125,IF(#REF!=\"1/6 pagina\",0.166,IF(#REF!=\"1/4 pagina\",0.25,IF(#REF!=\"1/3 pagina\",0.33,IF(#REF!=\"1/2 pagina\",0.5,IF(#REF!=\"2/3 pagina\",0.66,IF(#REF!=\"1/1 pagina\",1,IF(#REF!=\"2/1 pagina\",2))))))))","v":{"$error":"#REF!"}},0]
[null,null,null,null,null,null,null,null,null,null,null,null,null,null,null,null,null,null,null,null,null,null,null,null,null,null,null,null,null,null,null,null,null,null,{"$f":"IF(#REF!=\"1/8 pagina\",0.125,IF(#REF!=\"1/6 pagina\",0.166,IF(#REF!=\"1/4 pagina\",0.25,IF(#REF!=\"1/3 pagina\",0.33,IF(#REF!=\"1/2 pagina\",0.5,IF(#REF!=\"2/3 pagina\",0.66,IF(#REF!=\"1/1 pagina\",1,IF(#REF!=\"2/1 pagina\",2))))))))","v":{"$error":"#REF!"}},0]
[null,null,null,null,null,null,null,null,null,null,null,null,null,null,null,null,null,null,null,null,null,null,null,null,null,null,null,null,null,null,null,null,null,null,{"$f":"IF(#REF!=\"1/8 pagina\",0.125,IF(#REF!=\"1/6 pagina\",0.166,IF(#REF!=\"1/4 pagina\",0.25,IF(#REF!=\"1/3 pagina\",0.33,IF(#REF!=\"1/2 pagina\",0.5,IF(#REF!=\"2/3 pagina\",0.66,IF(#REF!=\"1/1 pagina\",1,IF(#REF!=\"2/1 pagina\",2))))))))","v":{"$error":"#REF!"}},0]
[null,null,null,null,null,null,null,null,null,null,null,null,null,null,null,null,null,null,null,null,null,null,null,null,null,null,null,null,null,null,null,null,null,null,{"$f":"SUM(AI209:AI354)","v":{"$error":"#REF!"}},{"$f":"SUM(AJ209:AJ354)","v":{"$error":"#REF!"}}]

{"sheet":"FACTSHEET Toppers","index":1,"n_rows":53,"n_cols":16,"rows_kept":53,"cut":false,"hidden":false,"merged":[[3,1,4,4],[3,6,4,9],[45,1,45,3]]}
[]
[]
[]
[null,"Aanleverspecificaties Toppers PRINT",null,null,null,null,"Aanleverspecificaties Toppers & kopstelling Servicecentrum",null,null,null,null,null,null,null,null," "]
[]
[null,"1/1 pagina (alleen in overleg inzetbaar)",null,null,null,null,"1/2 pagina"]
[]
[null,"Maximaal 4 titels | per titel – maximaal 40 tekens inclusief spaties",null,null,null,null,"1 titel – maximaal 50 tekens inclusief spaties"]
[null,"Maximaal 5 beelden waarvan 1 sfeerbeeld",null,null,null,null,"Maximaal 2 beelden waarvan 1 sfeerbeeld*"]
[null,"Maximaal 8 artikelnummers",null,null,null,null,"Maximaal 4 artikelnummers"]
[null,"Maximaal 120 woorden: maximaal 8 USP’s en/of commerciële",null,null,null,null,"Maximaal 40 woorden: maximaal 4 USP’s en/of commerciële "]
[null,"tekst – maximaal 1.000 tekens inclusief spaties",null,null,null,null,"tekst – maximaal 300 tekens inclusief spaties"]
[]
[]
[null,"In Toppers worden geen advertenties van leveranciers opgenomen.",null,null,null,null,"*Is een pagina gevuld met 2 acties van een 1/2de pagina, "]
[null,"Sfeerbeelden bevatten geen teksten.",null,null,null,null,"dan plaatsen we maar 1 sfeerbeeld op die pagina. Staat "]
[null,null,null,null,null,null,"een 1/2de pagina naast een 1/1 de pagina, dan krijgt alleen "]
[null,null,null,null,null,null,"de 1/1 de pagina een sfeerbeeld"]
[]
[]
[]
[]
[]
[]
[]
[]
[null,"1/2 pagina",null,null,"1/4 pagina",null,"Narrowcasting"]
[]
[]
[]
[]
[]
[]
[]
[]
[]
[]
[]
[]
[]
[]
[]
[]
[]
[]
[null,"Max. 2 beelden waarvan 1 sfeerbeeld\n4 artikelnummers\nmax. 40 woorden: 4 USP’s of commerciële tekst.",null,null,"1 productbeeld\n2 artikelnummers\nmax. 30 woorden: 3 USP’s of commerciële tekst."]
[]
[]
[]
[]
[]
[]
[null,null,null,null,null,null,"Kopstellingsbord"]